{"text_format":"1","workbook":"xlsx","n_sheets":3,"sheets":["Todo","Auswertung","Details"],"not_rendered":{"charts":0,"images":0,"macros":1,"external_links":0,"defined_names":6,"comments":0,"pivot_tables":2},"unopened":[],"bounds":{"document_bytes":16777216,"sheet_cells":100000,"rows_first":2000,"rows_last":500,"rows_between":2000,"halvings":0,"cell_chars":16384,"cell_head_chars":4096},"cells_cut":0,"cells_raw":0,"read":"whole","date_system":"1900"}

{"sheet":"Todo","index":0,"n_rows":195,"n_cols":13,"rows_kept":195,"cut":false,"hidden":false,"merged":[[1,10,2,10],[1,11,2,11]]}
["Rubrik","Kategorie","Aufgabe","Frequenz","Wer macht es?","Ortsgebunden","Dauer (in Minuten)","Dauer pro Jahr (in Stunden)","Dauer pro Jahr (in Tagen)",null,"Annahme"]
["Familien-Organisation","Auto","Auto putzen","vierteljährlich","Anton","ja",60,{"$f":"ROUND(VLOOKUP(Tabelle1[[#This Row],[Frequenz]],K:L,2,0)*Tabelle1[[#This Row],[Dauer (in Minuten)]]/60,1)","v":4},{"$f":"ROUND(Tabelle1[[#This Row],[Dauer pro Jahr (in Stunden)]]/$L$2,1)","v":0.5},null,"ein Tag abzüglich Schlaf, Arbeit und Sonstigem hat … Stunden:",8]
["Familien-Organisation","Auto","Kindersitze: putzen, einstellen, austauschen","vierteljährlich","Anton","ja",20,{"$f":"ROUND(VLOOKUP(Tabelle1[[#This Row],[Frequenz]],K:L,2,0)*Tabelle1[[#This Row],[Dauer (in Minuten)]]/60,1)","v":1.3},{"$f":"ROUND(Tabelle1[[#This Row],[Dauer pro Jahr (in Stunden)]]/$L$2,1)","v":0.2},null,null,null,"(Wert bei Bedarf ändern)"]
["Familien-Organisation","Auto","Reifen wechseln: selber machen oder sich um Werkstatt-Termin kümmern","halbjährlich","Anton","ja",120,{"$f":"ROUND(VLOOKUP(Tabelle1[[#This Row],[Frequenz]],K:L,2,0)*Tabelle1[[#This Row],[Dauer (in Minuten)]]/60,1)","v":4},{"$f":"ROUND(Tabelle1[[#This Row],[Dauer pro Jahr (in Stunden)]]/$L$2,1)","v":0.5}]
["Familien-Organisation","Auto","Tanken","wöchentlich","Anton","ja",20,{"$f":"ROUND(VLOOKUP(Tabelle1[[#This Row],[Frequenz]],K:L,2,0)*Tabelle1[[#This Row],[Dauer (in Minuten)]]/60,1)","v":17.3},{"$f":"ROUND(Tabelle1[[#This Row],[Dauer pro Jahr (in Stunden)]]/$L$2,1)","v":2.2000000000000002},null,"Frequenz","Faktor"]
["Familien-Organisation","Auto","TÜV","alle zwei Jahre","Anton","ja",120,{"$f":"ROUND(VLOOKUP(Tabelle1[[#This Row],[Frequenz]],K:L,2,0)*Tabelle1[[#This Row],[Dauer (in Minuten)]]/60,1)","v":1},{"$f":"ROUND(Tabelle1[[#This Row],[Dauer pro Jahr (in Stunden)]]/$L$2,1)","v":0.1},null,"alle zwei Jahre",0.5]
["Familien-Organisation","Auto","Versicherungen: überprüfen, bezahlen, abheften","jährlich","Anton","nein",15,{"$f":"ROUND(VLOOKUP(Tabelle1[[#This Row],[Frequenz]],K:L,2,0)*Tabelle1[[#This Row],[Dauer (in Minuten)]]/60,1)","v":0.3},{"$f":"ROUND(Tabelle1[[#This Row],[Dauer pro Jahr (in Stunden)]]/$L$2,1)","v":0},null,"jährlich",1]
["Familien-Organisation","Auto","Werkstatttermine Auto, akutes Problem: Termin ausmachen, Auto hinbringen, wieder abholen, Rechnung bezahlen","akut","Anton","ja",50,{"$f":"ROUND(VLOOKUP(Tabelle1[[#This Row],[Frequenz]],K:L,2,0)*Tabelle1[[#This Row],[Dauer (in Minuten)]]/60,1)","v":0.8},{"$f":"ROUND(Tabelle1[[#This Row],[Dauer pro Jahr (in Stunden)]]/$L$2,1)","v":0.1},null,"vierteljährlich",4]
["Familien-Organisation","Finanzen","Bargeld abheben","wöchentlich","Beide","nein",10,{"$f":"ROUND(VLOOKUP(Tabelle1[[#This Row],[Frequenz]],K:L,2,0)*Tabelle1[[#This Row],[Dauer (in Minuten)]]/60,1)","v":8.6999999999999993},{"$f":"ROUND(Tabelle1[[#This Row],[Dauer pro Jahr (in Stunden)]]/$L$2,1)","v":1.1000000000000001},null,"monatlich",12]
["Familien-Organisation","Finanzen","Beiträge Kindergarten / Hort / Vereine organisieren, überweisen","jährlich","Anton","nein",20,{"$f":"ROUND(VLOOKUP(Tabelle1[[#This Row],[Frequenz]],K:L,2,0)*Tabelle1[[#This Row],[Dauer (in Minuten)]]/60,1)","v":0.3},{"$f":"ROUND(Tabelle1[[#This Row],[Dauer pro Jahr (in Stunden)]]/$L$2,1)","v":0},null,"wöchentlich",52]
["Familien-Organisation","Finanzen","Belege für Steuer sammeln","vierteljährlich","Laura","nein",15,{"$f":"ROUND(VLOOKUP(Tabelle1[[#This Row],[Frequenz]],K:L,2,0)*Tabelle1[[#This Row],[Dauer (in Minuten)]]/60,1)","v":1},{"$f":"ROUND(Tabelle1[[#This Row],[Dauer pro Jahr (in Stunden)]]/$L$2,1)","v":0.1},null,"täglich",365]
["Familien-Organisation","Finanzen","Kinder-Sparbücher füllen, pflegen, überprüfen","vierteljährlich","Laura","nein",15,{"$f":"ROUND(VLOOKUP(Tabelle1[[#This Row],[Frequenz]],K:L,2,0)*Tabelle1[[#This Row],[Dauer (in Minuten)]]/60,1)","v":1},{"$f":"ROUND(Tabelle1[[#This Row],[Dauer pro Jahr (in Stunden)]]/$L$2,1)","v":0.1},null,"halbjährlich",2]
["Familien-Organisation","Finanzen","Kontenführung Familie","monatlich","Beide","nein",30,{"$f":"ROUND(VLOOKUP(Tabelle1[[#This Row],[Frequenz]],K:L,2,0)*Tabelle1[[#This Row],[Dauer (in Minuten)]]/60,1)","v":6},{"$f":"ROUND(Tabelle1[[#This Row],[Dauer pro Jahr (in Stunden)]]/$L$2,1)","v":0.8},null,"akut",1]
["Familien-Organisation","Finanzen","Kontenpflege: Finanzen checken, Altersvorsorge, Betriebsrente","vierteljährlich","Laura","nein",15,{"$f":"ROUND(VLOOKUP(Tabelle1[[#This Row],[Frequenz]],K:L,2,0)*Tabelle1[[#This Row],[Dauer (in Minuten)]]/60,1)","v":1},{"$f":"ROUND(Tabelle1[[#This Row],[Dauer pro Jahr (in Stunden)]]/$L$2,1)","v":0.1}]
["Familien-Organisation","Finanzen","Kontoauszüge besorgen oder organisieren","vierteljährlich","Anton","nein",15,{"$f":"ROUND(VLOOKUP(Tabelle1[[#This Row],[Frequenz]],K:L,2,0)*Tabelle1[[#This Row],[Dauer (in Minuten)]]/60,1)","v":1},{"$f":"ROUND(Tabelle1[[#This Row],[Dauer pro Jahr (in Stunden)]]/$L$2,1)","v":0.1}]
["Familien-Organisation","Finanzen","Miete","jährlich","Anton","nein",30,{"$f":"ROUND(VLOOKUP(Tabelle1[[#This Row],[Frequenz]],K:L,2,0)*Tabelle1[[#This Row],[Dauer (in Minuten)]]/60,1)","v":0.5},{"$f":"ROUND(Tabelle1[[#This Row],[Dauer pro Jahr (in Stunden)]]/$L$2,1)","v":0.1}]
["Familien-Organisation","Finanzen","Rechnungen begleichen","monatlich","Anton","nein",15,{"$f":"ROUND(VLOOKUP(Tabelle1[[#This Row],[Frequenz]],K:L,2,0)*Tabelle1[[#This Row],[Dauer (in Minuten)]]/60,1)","v":3},{"$f":"ROUND(Tabelle1[[#This Row],[Dauer pro Jahr (in Stunden)]]/$L$2,1)","v":0.4}]
["Familien-Organisation","Finanzen","Steuererklärung machen","jährlich","Anton","nein",240,{"$f":"ROUND(VLOOKUP(Tabelle1[[#This Row],[Frequenz]],K:L,2,0)*Tabelle1[[#This Row],[Dauer (in Minuten)]]/60,1)","v":4},{"$f":"ROUND(Tabelle1[[#This Row],[Dauer pro Jahr (in Stunden)]]/$L$2,1)","v":0.5}]
["Familien-Organisation","Finanzen","Wohnkredit","jährlich","Anton","nein",30,{"$f":"ROUND(VLOOKUP(Tabelle1[[#This Row],[Frequenz]],K:L,2,0)*Tabelle1[[#This Row],[Dauer (in Minuten)]]/60,1)","v":0.5},{"$f":"ROUND(Tabelle1[[#This Row],[Dauer pro Jahr (in Stunden)]]/$L$2,1)","v":0.1}]
["Familien-Organisation","Hobby / Freizeit","altersgerechte Bücher, Cds, Hörspiele kaufen / leihen","monatlich","Laura","ja",30,{"$f":"ROUND(VLOOKUP(Tabelle1[[#This Row],[Frequenz]],K:L,2,0)*Tabelle1[[#This Row],[Dauer (in Minuten)]]/60,1)","v":6},{"$f":"ROUND(Tabelle1[[#This Row],[Dauer pro Jahr (in Stunden)]]/$L$2,1)","v":0.8}]
["Familien-Organisation","Hobby / Freizeit","Basteln: für Schule, Kindergarten, als Freizeitbeschäftigung","monatlich","Laura","ja",20,{"$f":"ROUND(VLOOKUP(Tabelle1[[#This Row],[Frequenz]],K:L,2,0)*Tabelle1[[#This Row],[Dauer (in Minuten)]]/60,1)","v":4},{"$f":"ROUND(Tabelle1[[#This Row],[Dauer pro Jahr (in Stunden)]]/$L$2,1)","v":0.5}]
["Familien-Organisation","Hobby / Freizeit","Für Bewegung und frische Luft bei den Kindern sorgen","täglich","Anton","ja",45,{"$f":"ROUND(VLOOKUP(Tabelle1[[#This Row],[Frequenz]],K:L,2,0)*Tabelle1[[#This Row],[Dauer (in Minuten)]]/60,1)","v":273.8},{"$f":"ROUND(Tabelle1[[#This Row],[Dauer pro Jahr (in Stunden)]]/$L$2,1)","v":34.200000000000003}]
["Familien-Organisation","Hobby / Freizeit","Hobbys Kinder organisieren (Vereine, Unterricht)","vierteljährlich","Laura","nein",15,{"$f":"ROUND(VLOOKUP(Tabelle1[[#This Row],[Frequenz]],K:L,2,0)*Tabelle1[[#This Row],[Dauer (in Minuten)]]/60,1)","v":1},{"$f":"ROUND(Tabelle1[[#This Row],[Dauer pro Jahr (in Stunden)]]/$L$2,1)","v":0.1}]
["Familien-Organisation","Hobby / Freizeit","Kinderbetreuung organisieren (Babysitter, kranke Kinder)","wöchentlich","Anton","nein",5,{"$f":"ROUND(VLOOKUP(Tabelle1[[#This Row],[Frequenz]],K:L,2,0)*Tabelle1[[#This Row],[Dauer (in Minuten)]]/60,1)","v":4.3},{"$f":"ROUND(Tabelle1[[#This Row],[Dauer pro Jahr (in Stunden)]]/$L$2,1)","v":0.5}]
["Familien-Organisation","Hobby / Freizeit","Playdates organisieren (und begleiten)","wöchentlich","Laura","ja",20,{"$f":"ROUND(VLOOKUP(Tabelle1[[#This Row],[Frequenz]],K:L,2,0)*Tabelle1[[#This Row],[Dauer (in Minuten)]]/60,1)","v":17.3},{"$f":"ROUND(Tabelle1[[#This Row],[Dauer pro Jahr (in Stunden)]]/$L$2,1)","v":2.2000000000000002}]
["Familien-Organisation","Hobby / Freizeit","Rucksack für Familienausflüge packen / auspacken","wöchentlich","Laura","ja",15,{"$f":"ROUND(VLOOKUP(Tabelle1[[#This Row],[Frequenz]],K:L,2,0)*Tabelle1[[#This Row],[Dauer (in Minuten)]]/60,1)","v":13},{"$f":"ROUND(Tabelle1[[#This Row],[Dauer pro Jahr (in Stunden)]]/$L$2,1)","v":1.6}]
["Familien-Organisation","Hobby / Freizeit","Rucksack packen / auspacken für Kinderhobbys","wöchentlich","Laura","ja",5,{"$f":"ROUND(VLOOKUP(Tabelle1[[#This Row],[Frequenz]],K:L,2,0)*Tabelle1[[#This Row],[Dauer (in Minuten)]]/60,1)","v":4.3},{"$f":"ROUND(Tabelle1[[#This Row],[Dauer pro Jahr (in Stunden)]]/$L$2,1)","v":0.5}]
["Familien-Organisation","Hobby / Freizeit","tägliche Fahrdienste für Kinder","täglich","Beide","ja",4,{"$f":"ROUND(VLOOKUP(Tabelle1[[#This Row],[Frequenz]],K:L,2,0)*Tabelle1[[#This Row],[Dauer (in Minuten)]]/60,1)","v":24.3},{"$f":"ROUND(Tabelle1[[#This Row],[Dauer pro Jahr (in Stunden)]]/$L$2,1)","v":3}]
["Familien-Organisation","Hobby / Freizeit","Wochenende: Ausflüge planen","wöchentlich","Laura","nein",20,{"$f":"ROUND(VLOOKUP(Tabelle1[[#This Row],[Frequenz]],K:L,2,0)*Tabelle1[[#This Row],[Dauer (in Minuten)]]/60,1)","v":17.3},{"$f":"ROUND(Tabelle1[[#This Row],[Dauer pro Jahr (in Stunden)]]/$L$2,1)","v":2.2000000000000002}]
["Familien-Organisation","Kinderkleidung","Kinderkleider für den nächsten Tag rauslegen","täglich","Laura","ja",5,{"$f":"ROUND(VLOOKUP(Tabelle1[[#This Row],[Frequenz]],K:L,2,0)*Tabelle1[[#This Row],[Dauer (in Minuten)]]/60,1)","v":30.4},{"$f":"ROUND(Tabelle1[[#This Row],[Dauer pro Jahr (in Stunden)]]/$L$2,1)","v":3.8}]
["Familien-Organisation","Kinderkleidung","Kinderkleidung nach Jahreszeiten sortieren, waschen, aufräumen","vierteljährlich","Laura","ja",20,{"$f":"ROUND(VLOOKUP(Tabelle1[[#This Row],[Frequenz]],K:L,2,0)*Tabelle1[[#This Row],[Dauer (in Minuten)]]/60,1)","v":1.3},{"$f":"ROUND(Tabelle1[[#This Row],[Dauer pro Jahr (in Stunden)]]/$L$2,1)","v":0.2}]
["Familien-Organisation","Kinderkleidung","Kleidung an andere Kinder weitergeben / verkaufen / verschenken","vierteljährlich","Laura","ja",45,{"$f":"ROUND(VLOOKUP(Tabelle1[[#This Row],[Frequenz]],K:L,2,0)*Tabelle1[[#This Row],[Dauer (in Minuten)]]/60,1)","v":3},{"$f":"ROUND(Tabelle1[[#This Row],[Dauer pro Jahr (in Stunden)]]/$L$2,1)","v":0.4}]
["Familien-Organisation","Kinderkleidung","neue Kleider kaufen (Kinder)","vierteljährlich","Laura","ja",120,{"$f":"ROUND(VLOOKUP(Tabelle1[[#This Row],[Frequenz]],K:L,2,0)*Tabelle1[[#This Row],[Dauer (in Minuten)]]/60,1)","v":8},{"$f":"ROUND(Tabelle1[[#This Row],[Dauer pro Jahr (in Stunden)]]/$L$2,1)","v":1}]
["Familien-Organisation","Kinderkleidung","Schuhgröße messen, Kinderschuhe kaufen oder der Jahreszeit anpassen","vierteljährlich","Anton","ja",45,{"$f":"ROUND(VLOOKUP(Tabelle1[[#This Row],[Frequenz]],K:L,2,0)*Tabelle1[[#This Row],[Dauer (in Minuten)]]/60,1)","v":3},{"$f":"ROUND(Tabelle1[[#This Row],[Dauer pro Jahr (in Stunden)]]/$L$2,1)","v":0.4}]
["Familien-Organisation","Ordnung","alte Zeitungen aussortieren","monatlich","Laura","ja",10,{"$f":"ROUND(VLOOKUP(Tabelle1[[#This Row],[Frequenz]],K:L,2,0)*Tabelle1[[#This Row],[Dauer (in Minuten)]]/60,1)","v":2},{"$f":"ROUND(Tabelle1[[#This Row],[Dauer pro Jahr (in Stunden)]]/$L$2,1)","v":0.3}]
["Familien-Organisation","Ordnung","Handy, Schlüssel, Geldbeutel deponieren","täglich","Beide","ja",5,{"$f":"ROUND(VLOOKUP(Tabelle1[[#This Row],[Frequenz]],K:L,2,0)*Tabelle1[[#This Row],[Dauer (in Minuten)]]/60,1)","v":30.4},{"$f":"ROUND(Tabelle1[[#This Row],[Dauer pro Jahr (in Stunden)]]/$L$2,1)","v":3.8}]
["Familien-Organisation","Ordnung","Ordner erstellen und pflegen","vierteljährlich","Laura","ja",20,{"$f":"ROUND(VLOOKUP(Tabelle1[[#This Row],[Frequenz]],K:L,2,0)*Tabelle1[[#This Row],[Dauer (in Minuten)]]/60,1)","v":1.3},{"$f":"ROUND(Tabelle1[[#This Row],[Dauer pro Jahr (in Stunden)]]/$L$2,1)","v":0.2}]
["Familien-Organisation","Papierkram","Ablage machen","monatlich","Beide","ja",20,{"$f":"ROUND(VLOOKUP(Tabelle1[[#This Row],[Frequenz]],K:L,2,0)*Tabelle1[[#This Row],[Dauer (in Minuten)]]/60,1)","v":4},{"$f":"ROUND(Tabelle1[[#This Row],[Dauer pro Jahr (in Stunden)]]/$L$2,1)","v":0.5}]
["Familien-Organisation","Papierkram","Post sortieren und ablegen, sichten, bewerten, bezahlen, abheften ","wöchentlich","Beide","ja",15,{"$f":"ROUND(VLOOKUP(Tabelle1[[#This Row],[Frequenz]],K:L,2,0)*Tabelle1[[#This Row],[Dauer (in Minuten)]]/60,1)","v":13},{"$f":"ROUND(Tabelle1[[#This Row],[Dauer pro Jahr (in Stunden)]]/$L$2,1)","v":1.6}]
["Familien-Organisation","Papierkram","Versicherungen checken, kündigen, abschließen","jährlich","Anton","nein",15,{"$f":"ROUND(VLOOKUP(Tabelle1[[#This Row],[Frequenz]],K:L,2,0)*Tabelle1[[#This Row],[Dauer (in Minuten)]]/60,1)","v":0.3},{"$f":"ROUND(Tabelle1[[#This Row],[Dauer pro Jahr (in Stunden)]]/$L$2,1)","v":0}]
["Familien-Organisation","Papierkram","Zeitungsabo bezahlen / kündigen","jährlich","Laura","nein",10,{"$f":"ROUND(VLOOKUP(Tabelle1[[#This Row],[Frequenz]],K:L,2,0)*Tabelle1[[#This Row],[Dauer (in Minuten)]]/60,1)","v":0.2},{"$f":"ROUND(Tabelle1[[#This Row],[Dauer pro Jahr (in Stunden)]]/$L$2,1)","v":0}]
["Familien-Organisation","Termine","Familienfeier planen","jährlich","Beide","nein",180,{"$f":"ROUND(VLOOKUP(Tabelle1[[#This Row],[Frequenz]],K:L,2,0)*Tabelle1[[#This Row],[Dauer (in Minuten)]]/60,1)","v":3},{"$f":"ROUND(Tabelle1[[#This Row],[Dauer pro Jahr (in Stunden)]]/$L$2,1)","v":0.4}]
["Familien-Organisation","Termine","Friseurtermine Kinder: ausmachen und wahrnehmen","vierteljährlich","Anton","nein",60,{"$f":"ROUND(VLOOKUP(Tabelle1[[#This Row],[Frequenz]],K:L,2,0)*Tabelle1[[#This Row],[Dauer (in Minuten)]]/60,1)","v":4},{"$f":"ROUND(Tabelle1[[#This Row],[Dauer pro Jahr (in Stunden)]]/$L$2,1)","v":0.5}]
["Familien-Organisation","Termine","Kalender führen","täglich","Beide","nein",5,{"$f":"ROUND(VLOOKUP(Tabelle1[[#This Row],[Frequenz]],K:L,2,0)*Tabelle1[[#This Row],[Dauer (in Minuten)]]/60,1)","v":30.4},{"$f":"ROUND(Tabelle1[[#This Row],[Dauer pro Jahr (in Stunden)]]/$L$2,1)","v":3.8}]
["Familien-Organisation","Termine","Woche planen","wöchentlich","Beide","nein",20,{"$f":"ROUND(VLOOKUP(Tabelle1[[#This Row],[Frequenz]],K:L,2,0)*Tabelle1[[#This Row],[Dauer (in Minuten)]]/60,1)","v":17.3},{"$f":"ROUND(Tabelle1[[#This Row],[Dauer pro Jahr (in Stunden)]]/$L$2,1)","v":2.2000000000000002}]
["Familien-Organisation","Urlaub","Packen","halbjährlich","Beide","ja",120,{"$f":"ROUND(VLOOKUP(Tabelle1[[#This Row],[Frequenz]],K:L,2,0)*Tabelle1[[#This Row],[Dauer (in Minuten)]]/60,1)","v":4},{"$f":"ROUND(Tabelle1[[#This Row],[Dauer pro Jahr (in Stunden)]]/$L$2,1)","v":0.5}]
["Familien-Organisation","Urlaub","Packliste machen","jährlich","Beide","nein",45,{"$f":"ROUND(VLOOKUP(Tabelle1[[#This Row],[Frequenz]],K:L,2,0)*Tabelle1[[#This Row],[Dauer (in Minuten)]]/60,1)","v":0.8},{"$f":"ROUND(Tabelle1[[#This Row],[Dauer pro Jahr (in Stunden)]]/$L$2,1)","v":0.1}]
["Familien-Organisation","Urlaub","Proviant für die Fahrt machen","halbjährlich","Laura","nein",15,{"$f":"ROUND(VLOOKUP(Tabelle1[[#This Row],[Frequenz]],K:L,2,0)*Tabelle1[[#This Row],[Dauer (in Minuten)]]/60,1)","v":0.5},{"$f":"ROUND(Tabelle1[[#This Row],[Dauer pro Jahr (in Stunden)]]/$L$2,1)","v":0.1}]
["Familien-Organisation","Urlaub","Reiseapotheke auf Vollständigkeit kontrollieren, Ersatz kaufen","halbjährlich","Laura","ja",15,{"$f":"ROUND(VLOOKUP(Tabelle1[[#This Row],[Frequenz]],K:L,2,0)*Tabelle1[[#This Row],[Dauer (in Minuten)]]/60,1)","v":0.5},{"$f":"ROUND(Tabelle1[[#This Row],[Dauer pro Jahr (in Stunden)]]/$L$2,1)","v":0.1}]
["Familien-Organisation","Urlaub","Urlaub buchen und planen","jährlich","Anton","nein",30,{"$f":"ROUND(VLOOKUP(Tabelle1[[#This Row],[Frequenz]],K:L,2,0)*Tabelle1[[#This Row],[Dauer (in Minuten)]]/60,1)","v":0.5},{"$f":"ROUND(Tabelle1[[#This Row],[Dauer pro Jahr (in Stunden)]]/$L$2,1)","v":0.1}]
["Fürsorge","Atmosphäre schaffen","Blumen aufstellen, Blumen pflanzen","monatlich","Laura","ja",10,{"$f":"ROUND(VLOOKUP(Tabelle1[[#This Row],[Frequenz]],K:L,2,0)*Tabelle1[[#This Row],[Dauer (in Minuten)]]/60,1)","v":2},{"$f":"ROUND(Tabelle1[[#This Row],[Dauer pro Jahr (in Stunden)]]/$L$2,1)","v":0.3}]
["Fürsorge","Atmosphäre schaffen","Jahreszeitlich dekorieren","vierteljährlich","Laura","ja",30,{"$f":"ROUND(VLOOKUP(Tabelle1[[#This Row],[Frequenz]],K:L,2,0)*Tabelle1[[#This Row],[Dauer (in Minuten)]]/60,1)","v":2},{"$f":"ROUND(Tabelle1[[#This Row],[Dauer pro Jahr (in Stunden)]]/$L$2,1)","v":0.3}]
["Fürsorge","Baby","Babybrei kochen / kaufen","täglich","Beide","ja",15,{"$f":"ROUND(VLOOKUP(Tabelle1[[#This Row],[Frequenz]],K:L,2,0)*Tabelle1[[#This Row],[Dauer (in Minuten)]]/60,1)","v":91.3},{"$f":"ROUND(Tabelle1[[#This Row],[Dauer pro Jahr (in Stunden)]]/$L$2,1)","v":11.4}]
["Fürsorge","Baby","Babykurse organisieren, anmelden, besuchen","wöchentlich","Beide","ja",30,{"$f":"ROUND(VLOOKUP(Tabelle1[[#This Row],[Frequenz]],K:L,2,0)*Tabelle1[[#This Row],[Dauer (in Minuten)]]/60,1)","v":26},{"$f":"ROUND(Tabelle1[[#This Row],[Dauer pro Jahr (in Stunden)]]/$L$2,1)","v":3.3}]
["Fürsorge","Baby","Füttern","täglich","Beide","ja",80,{"$f":"ROUND(VLOOKUP(Tabelle1[[#This Row],[Frequenz]],K:L,2,0)*Tabelle1[[#This Row],[Dauer (in Minuten)]]/60,1)","v":486.7},{"$f":"ROUND(Tabelle1[[#This Row],[Dauer pro Jahr (in Stunden)]]/$L$2,1)","v":60.8}]
["Fürsorge","Baby","Vitamin D geben","täglich","Beide","ja",5,{"$f":"ROUND(VLOOKUP(Tabelle1[[#This Row],[Frequenz]],K:L,2,0)*Tabelle1[[#This Row],[Dauer (in Minuten)]]/60,1)","v":30.4},{"$f":"ROUND(Tabelle1[[#This Row],[Dauer pro Jahr (in Stunden)]]/$L$2,1)","v":3.8}]
["Fürsorge","Baby","Wickeln","täglich","Beide","ja",40,{"$f":"ROUND(VLOOKUP(Tabelle1[[#This Row],[Frequenz]],K:L,2,0)*Tabelle1[[#This Row],[Dauer (in Minuten)]]/60,1)","v":243.3},{"$f":"ROUND(Tabelle1[[#This Row],[Dauer pro Jahr (in Stunden)]]/$L$2,1)","v":30.4}]
["Fürsorge","Baby","Wickeltasche packen / auspacken","täglich","Beide","ja",5,{"$f":"ROUND(VLOOKUP(Tabelle1[[#This Row],[Frequenz]],K:L,2,0)*Tabelle1[[#This Row],[Dauer (in Minuten)]]/60,1)","v":30.4},{"$f":"ROUND(Tabelle1[[#This Row],[Dauer pro Jahr (in Stunden)]]/$L$2,1)","v":3.8}]
["Fürsorge","Elfenarbeit","Faschingskostüme kaufen / nähen","jährlich","Laura","nein",60,{"$f":"ROUND(VLOOKUP(Tabelle1[[#This Row],[Frequenz]],K:L,2,0)*Tabelle1[[#This Row],[Dauer (in Minuten)]]/60,1)","v":1},{"$f":"ROUND(Tabelle1[[#This Row],[Dauer pro Jahr (in Stunden)]]/$L$2,1)","v":0.1}]
["Fürsorge","Elfenarbeit","Geschenke für ErzieherIn / Tagesmutter / FußballtrainerIn besorgen","jährlich","Laura","nein",30,{"$f":"ROUND(VLOOKUP(Tabelle1[[#This Row],[Frequenz]],K:L,2,0)*Tabelle1[[#This Row],[Dauer (in Minuten)]]/60,1)","v":0.5},{"$f":"ROUND(Tabelle1[[#This Row],[Dauer pro Jahr (in Stunden)]]/$L$2,1)","v":0.1}]
["Fürsorge","Elfenarbeit","Zahnfee spielen","vierteljährlich","Laura","ja",10,{"$f":"ROUND(VLOOKUP(Tabelle1[[#This Row],[Frequenz]],K:L,2,0)*Tabelle1[[#This Row],[Dauer (in Minuten)]]/60,1)","v":0.7},{"$f":"ROUND(Tabelle1[[#This Row],[Dauer pro Jahr (in Stunden)]]/$L$2,1)","v":0.1}]
["Fürsorge","Elfenarbeit Geburtstag","Gabentisch schmücken","halbjährlich","Laura","ja",10,{"$f":"ROUND(VLOOKUP(Tabelle1[[#This Row],[Frequenz]],K:L,2,0)*Tabelle1[[#This Row],[Dauer (in Minuten)]]/60,1)","v":0.3},{"$f":"ROUND(Tabelle1[[#This Row],[Dauer pro Jahr (in Stunden)]]/$L$2,1)","v":0}]
["Fürsorge","Elfenarbeit Geburtstag","Geburtstagskuchen backen","vierteljährlich","Laura","ja",40,{"$f":"ROUND(VLOOKUP(Tabelle1[[#This Row],[Frequenz]],K:L,2,0)*Tabelle1[[#This Row],[Dauer (in Minuten)]]/60,1)","v":2.7},{"$f":"ROUND(Tabelle1[[#This Row],[Dauer pro Jahr (in Stunden)]]/$L$2,1)","v":0.3}]
["Fürsorge","Elfenarbeit Geburtstag","Geschenke für Geburtstage überlegen, abstimmen, kaufen","vierteljährlich","Laura","nein",60,{"$f":"ROUND(VLOOKUP(Tabelle1[[#This Row],[Frequenz]],K:L,2,0)*Tabelle1[[#This Row],[Dauer (in Minuten)]]/60,1)","v":4},{"$f":"ROUND(Tabelle1[[#This Row],[Dauer pro Jahr (in Stunden)]]/$L$2,1)","v":0.5}]
["Fürsorge","Elfenarbeit Geburtstag","Kindergeburtstag organisieren","halbjährlich","Beide","nein",120,{"$f":"ROUND(VLOOKUP(Tabelle1[[#This Row],[Frequenz]],K:L,2,0)*Tabelle1[[#This Row],[Dauer (in Minuten)]]/60,1)","v":4},{"$f":"ROUND(Tabelle1[[#This Row],[Dauer pro Jahr (in Stunden)]]/$L$2,1)","v":0.5}]
["Fürsorge","Elfenarbeit Geburtstag","Verwandten/ Freunden  zum Geburtstag gratulieren","wöchentlich","Laura","nein",10,{"$f":"ROUND(VLOOKUP(Tabelle1[[#This Row],[Frequenz]],K:L,2,0)*Tabelle1[[#This Row],[Dauer (in Minuten)]]/60,1)","v":8.6999999999999993},{"$f":"ROUND(Tabelle1[[#This Row],[Dauer pro Jahr (in Stunden)]]/$L$2,1)","v":1.1000000000000001}]
["Fürsorge","Elfenarbeit Geburtstag","Wünsche der Kinder merken und aufschreiben (für Geburtstage und Weihnachten)","monatlich","Laura","nein",30,{"$f":"ROUND(VLOOKUP(Tabelle1[[#This Row],[Frequenz]],K:L,2,0)*Tabelle1[[#This Row],[Dauer (in Minuten)]]/60,1)","v":6},{"$f":"ROUND(Tabelle1[[#This Row],[Dauer pro Jahr (in Stunden)]]/$L$2,1)","v":0.8}]
["Fürsorge","Elfenarbeit Ostern","Kleine Ostergeschenke und Süßes besorgen","jährlich","Laura","ja",60,{"$f":"ROUND(VLOOKUP(Tabelle1[[#This Row],[Frequenz]],K:L,2,0)*Tabelle1[[#This Row],[Dauer (in Minuten)]]/60,1)","v":1},{"$f":"ROUND(Tabelle1[[#This Row],[Dauer pro Jahr (in Stunden)]]/$L$2,1)","v":0.1}]
["Fürsorge","Elfenarbeit Ostern","Ostereier bemalen","jährlich","Laura","ja",120,{"$f":"ROUND(VLOOKUP(Tabelle1[[#This Row],[Frequenz]],K:L,2,0)*Tabelle1[[#This Row],[Dauer (in Minuten)]]/60,1)","v":2},{"$f":"ROUND(Tabelle1[[#This Row],[Dauer pro Jahr (in Stunden)]]/$L$2,1)","v":0.3}]
["Fürsorge","Elfenarbeit Ostern","Osterkörbchen füllen","jährlich","Laura","ja",30,{"$f":"ROUND(VLOOKUP(Tabelle1[[#This Row],[Frequenz]],K:L,2,0)*Tabelle1[[#This Row],[Dauer (in Minuten)]]/60,1)","v":0.5},{"$f":"ROUND(Tabelle1[[#This Row],[Dauer pro Jahr (in Stunden)]]/$L$2,1)","v":0.1}]
["Fürsorge","Elfenarbeit Weihnachten","Adventskalendergeschenke kaufen, Beutel befüllen","jährlich","Laura","ja",240,{"$f":"ROUND(VLOOKUP(Tabelle1[[#This Row],[Frequenz]],K:L,2,0)*Tabelle1[[#This Row],[Dauer (in Minuten)]]/60,1)","v":4},{"$f":"ROUND(Tabelle1[[#This Row],[Dauer pro Jahr (in Stunden)]]/$L$2,1)","v":0.5}]
["Fürsorge","Elfenarbeit Weihnachten","Adventskranz besorgen","jährlich","Laura","nein",20,{"$f":"ROUND(VLOOKUP(Tabelle1[[#This Row],[Frequenz]],K:L,2,0)*Tabelle1[[#This Row],[Dauer (in Minuten)]]/60,1)","v":0.3},{"$f":"ROUND(Tabelle1[[#This Row],[Dauer pro Jahr (in Stunden)]]/$L$2,1)","v":0}]
["Fürsorge","Elfenarbeit Weihnachten","Heilig Abend vorbereiten / organisieren","jährlich","Anton","ja",60,{"$f":"ROUND(VLOOKUP(Tabelle1[[#This Row],[Frequenz]],K:L,2,0)*Tabelle1[[#This Row],[Dauer (in Minuten)]]/60,1)","v":1},{"$f":"ROUND(Tabelle1[[#This Row],[Dauer pro Jahr (in Stunden)]]/$L$2,1)","v":0.1}]
["Fürsorge","Elfenarbeit Weihnachten","mit Kindern Wunschzettel schreiben","jährlich","Laura","nein",20,{"$f":"ROUND(VLOOKUP(Tabelle1[[#This Row],[Frequenz]],K:L,2,0)*Tabelle1[[#This Row],[Dauer (in Minuten)]]/60,1)","v":0.3},{"$f":"ROUND(Tabelle1[[#This Row],[Dauer pro Jahr (in Stunden)]]/$L$2,1)","v":0}]
["Fürsorge","Elfenarbeit Weihnachten","Plätzchen backen","jährlich","Laura","ja",120,{"$f":"ROUND(VLOOKUP(Tabelle1[[#This Row],[Frequenz]],K:L,2,0)*Tabelle1[[#This Row],[Dauer (in Minuten)]]/60,1)","v":2},{"$f":"ROUND(Tabelle1[[#This Row],[Dauer pro Jahr (in Stunden)]]/$L$2,1)","v":0.3}]
["Fürsorge","Elfenarbeit Weihnachten","Weihnachtsbaum kaufen und schmücken","jährlich","Anton","ja",120,{"$f":"ROUND(VLOOKUP(Tabelle1[[#This Row],[Frequenz]],K:L,2,0)*Tabelle1[[#This Row],[Dauer (in Minuten)]]/60,1)","v":2},{"$f":"ROUND(Tabelle1[[#This Row],[Dauer pro Jahr (in Stunden)]]/$L$2,1)","v":0.3}]
["Fürsorge","Elfenarbeit Weihnachten","Weihnachtspost schreiben","jährlich","Laura","nein",60,{"$f":"ROUND(VLOOKUP(Tabelle1[[#This Row],[Frequenz]],K:L,2,0)*Tabelle1[[#This Row],[Dauer (in Minuten)]]/60,1)","v":1},{"$f":"ROUND(Tabelle1[[#This Row],[Dauer pro Jahr (in Stunden)]]/$L$2,1)","v":0.1}]
["Fürsorge","Erinnerungen","Erinnerungsalben Kinder pflegen / gestalten","vierteljährlich","Laura","ja",30,{"$f":"ROUND(VLOOKUP(Tabelle1[[#This Row],[Frequenz]],K:L,2,0)*Tabelle1[[#This Row],[Dauer (in Minuten)]]/60,1)","v":2},{"$f":"ROUND(Tabelle1[[#This Row],[Dauer pro Jahr (in Stunden)]]/$L$2,1)","v":0.3}]
["Fürsorge","Erinnerungen","Fotoalben gestalten","vierteljährlich","Laura","nein",180,{"$f":"ROUND(VLOOKUP(Tabelle1[[#This Row],[Frequenz]],K:L,2,0)*Tabelle1[[#This Row],[Dauer (in Minuten)]]/60,1)","v":12},{"$f":"ROUND(Tabelle1[[#This Row],[Dauer pro Jahr (in Stunden)]]/$L$2,1)","v":1.5}]
["Fürsorge","Erinnerungen","Fotos aufhängen","jährlich","Anton","ja",20,{"$f":"ROUND(VLOOKUP(Tabelle1[[#This Row],[Frequenz]],K:L,2,0)*Tabelle1[[#This Row],[Dauer (in Minuten)]]/60,1)","v":0.3},{"$f":"ROUND(Tabelle1[[#This Row],[Dauer pro Jahr (in Stunden)]]/$L$2,1)","v":0}]
["Fürsorge","Erinnerungen","Fotos machen","wöchentlich","Laura","ja",15,{"$f":"ROUND(VLOOKUP(Tabelle1[[#This Row],[Frequenz]],K:L,2,0)*Tabelle1[[#This Row],[Dauer (in Minuten)]]/60,1)","v":13},{"$f":"ROUND(Tabelle1[[#This Row],[Dauer pro Jahr (in Stunden)]]/$L$2,1)","v":1.6}]
["Fürsorge","Erinnerungen","Kinderkunstwerke sammeln, archivieren, aufhängen","wöchentlich","Laura","ja",5,{"$f":"ROUND(VLOOKUP(Tabelle1[[#This Row],[Frequenz]],K:L,2,0)*Tabelle1[[#This Row],[Dauer (in Minuten)]]/60,1)","v":4.3},{"$f":"ROUND(Tabelle1[[#This Row],[Dauer pro Jahr (in Stunden)]]/$L$2,1)","v":0.5}]
["Fürsorge","Ernährung","Abendessen machen","täglich","Anton","ja",20,{"$f":"ROUND(VLOOKUP(Tabelle1[[#This Row],[Frequenz]],K:L,2,0)*Tabelle1[[#This Row],[Dauer (in Minuten)]]/60,1)","v":121.7},{"$f":"ROUND(Tabelle1[[#This Row],[Dauer pro Jahr (in Stunden)]]/$L$2,1)","v":15.2}]
["Fürsorge","Ernährung","Brot kaufen","täglich","Laura","ja",10,{"$f":"ROUND(VLOOKUP(Tabelle1[[#This Row],[Frequenz]],K:L,2,0)*Tabelle1[[#This Row],[Dauer (in Minuten)]]/60,1)","v":60.8},{"$f":"ROUND(Tabelle1[[#This Row],[Dauer pro Jahr (in Stunden)]]/$L$2,1)","v":7.6}]
["Fürsorge","Ernährung","Einkaufsliste schreiben","wöchentlich","Laura","nein",10,{"$f":"ROUND(VLOOKUP(Tabelle1[[#This Row],[Frequenz]],K:L,2,0)*Tabelle1[[#This Row],[Dauer (in Minuten)]]/60,1)","v":8.6999999999999993},{"$f":"ROUND(Tabelle1[[#This Row],[Dauer pro Jahr (in Stunden)]]/$L$2,1)","v":1.1000000000000001}]
["Fürsorge","Ernährung","Essensplanung machen","wöchentlich","Laura","nein",15,{"$f":"ROUND(VLOOKUP(Tabelle1[[#This Row],[Frequenz]],K:L,2,0)*Tabelle1[[#This Row],[Dauer (in Minuten)]]/60,1)","v":13},{"$f":"ROUND(Tabelle1[[#This Row],[Dauer pro Jahr (in Stunden)]]/$L$2,1)","v":1.6}]
["Fürsorge","Ernährung","Essensvorräte, Getränke einkaufen ","wöchentlich","Laura","ja",120,{"$f":"ROUND(VLOOKUP(Tabelle1[[#This Row],[Frequenz]],K:L,2,0)*Tabelle1[[#This Row],[Dauer (in Minuten)]]/60,1)","v":104},{"$f":"ROUND(Tabelle1[[#This Row],[Dauer pro Jahr (in Stunden)]]/$L$2,1)","v":13}]
["Fürsorge","Ernährung","Frühstück machen","täglich","Laura","ja",10,{"$f":"ROUND(VLOOKUP(Tabelle1[[#This Row],[Frequenz]],K:L,2,0)*Tabelle1[[#This Row],[Dauer (in Minuten)]]/60,1)","v":60.8},{"$f":"ROUND(Tabelle1[[#This Row],[Dauer pro Jahr (in Stunden)]]/$L$2,1)","v":7.6}]
["Fürsorge","Ernährung","Kochen (Wochenende)","wöchentlich","Anton","ja",20,{"$f":"ROUND(VLOOKUP(Tabelle1[[#This Row],[Frequenz]],K:L,2,0)*Tabelle1[[#This Row],[Dauer (in Minuten)]]/60,1)","v":17.3},{"$f":"ROUND(Tabelle1[[#This Row],[Dauer pro Jahr (in Stunden)]]/$L$2,1)","v":2.2000000000000002}]
["Fürsorge","Ernährung","Mittagessen kochen","täglich","Laura","ja",30,{"$f":"ROUND(VLOOKUP(Tabelle1[[#This Row],[Frequenz]],K:L,2,0)*Tabelle1[[#This Row],[Dauer (in Minuten)]]/60,1)","v":182.5},{"$f":"ROUND(Tabelle1[[#This Row],[Dauer pro Jahr (in Stunden)]]/$L$2,1)","v":22.8}]
["Fürsorge","Erziehung","Medienregeln aufstellen und auf das Einhalten achten","täglich","Laura","nein",5,{"$f":"ROUND(VLOOKUP(Tabelle1[[#This Row],[Frequenz]],K:L,2,0)*Tabelle1[[#This Row],[Dauer (in Minuten)]]/60,1)","v":30.4},{"$f":"ROUND(Tabelle1[[#This Row],[Dauer pro Jahr (in Stunden)]]/$L$2,1)","v":3.8}]
["Fürsorge","Erziehung","Taschengeld bestimmen und auszahlen","wöchentlich","Laura","nein",3,{"$f":"ROUND(VLOOKUP(Tabelle1[[#This Row],[Frequenz]],K:L,2,0)*Tabelle1[[#This Row],[Dauer (in Minuten)]]/60,1)","v":2.6},{"$f":"ROUND(Tabelle1[[#This Row],[Dauer pro Jahr (in Stunden)]]/$L$2,1)","v":0.3}]
["Fürsorge","Gefühlsarbeit","Kinder ins Bett bringen","täglich","Anton","ja",40,{"$f":"ROUND(VLOOKUP(Tabelle1[[#This Row],[Frequenz]],K:L,2,0)*Tabelle1[[#This Row],[Dauer (in Minuten)]]/60,1)","v":243.3},{"$f":"ROUND(Tabelle1[[#This Row],[Dauer pro Jahr (in Stunden)]]/$L$2,1)","v":30.4}]
["Fürsorge","Gefühlsarbeit","Konflikte klären (zwischen Geschwistern oder zwischen Kindern und Freunden)","wöchentlich","Anton","nein",30,{"$f":"ROUND(VLOOKUP(Tabelle1[[#This Row],[Frequenz]],K:L,2,0)*Tabelle1[[#This Row],[Dauer (in Minuten)]]/60,1)","v":26},{"$f":"ROUND(Tabelle1[[#This Row],[Dauer pro Jahr (in Stunden)]]/$L$2,1)","v":3.3}]
["Fürsorge","Gefühlsarbeit","Konflikte: Aussprachen mit Kindern führen","wöchentlich","Anton","nein",10,{"$f":"ROUND(VLOOKUP(Tabelle1[[#This Row],[Frequenz]],K:L,2,0)*Tabelle1[[#This Row],[Dauer (in Minuten)]]/60,1)","v":8.6999999999999993},{"$f":"ROUND(Tabelle1[[#This Row],[Dauer pro Jahr (in Stunden)]]/$L$2,1)","v":1.1000000000000001}]
["Fürsorge","Gefühlsarbeit","sich um die eigenen Eltern kümmern","wöchentlich","Laura","nein",20,{"$f":"ROUND(VLOOKUP(Tabelle1[[#This Row],[Frequenz]],K:L,2,0)*Tabelle1[[#This Row],[Dauer (in Minuten)]]/60,1)","v":17.3},{"$f":"ROUND(Tabelle1[[#This Row],[Dauer pro Jahr (in Stunden)]]/$L$2,1)","v":2.2000000000000002}]
["Fürsorge","Gesundheit","Augen Kinder: Sehtest, Augenarzttermin, neue Brille kaufen","jährlich","Laura","ja",120,{"$f":"ROUND(VLOOKUP(Tabelle1[[#This Row],[Frequenz]],K:L,2,0)*Tabelle1[[#This Row],[Dauer (in Minuten)]]/60,1)","v":2},{"$f":"ROUND(Tabelle1[[#This Row],[Dauer pro Jahr (in Stunden)]]/$L$2,1)","v":0.3}]
["Fürsorge","Gesundheit","Eincremen","wöchentlich","Laura","ja",20,{"$f":"ROUND(VLOOKUP(Tabelle1[[#This Row],[Frequenz]],K:L,2,0)*Tabelle1[[#This Row],[Dauer (in Minuten)]]/60,1)","v":17.3},{"$f":"ROUND(Tabelle1[[#This Row],[Dauer pro Jahr (in Stunden)]]/$L$2,1)","v":2.2000000000000002}]
["Fürsorge","Gesundheit","Hausapotheke durchschauen, Ersatz kaufen, Haltbarkeit prüfen","vierteljährlich","Laura","ja",20,{"$f":"ROUND(VLOOKUP(Tabelle1[[#This Row],[Frequenz]],K:L,2,0)*Tabelle1[[#This Row],[Dauer (in Minuten)]]/60,1)","v":1.3},{"$f":"ROUND(Tabelle1[[#This Row],[Dauer pro Jahr (in Stunden)]]/$L$2,1)","v":0.2}]
["Fürsorge","Gesundheit","Impfausweis kontrollieren","jährlich","Laura","ja",5,{"$f":"ROUND(VLOOKUP(Tabelle1[[#This Row],[Frequenz]],K:L,2,0)*Tabelle1[[#This Row],[Dauer (in Minuten)]]/60,1)","v":0.1},{"$f":"ROUND(Tabelle1[[#This Row],[Dauer pro Jahr (in Stunden)]]/$L$2,1)","v":0}]
["Fürsorge","Gesundheit","Kinder baden","wöchentlich","Anton","ja",40,{"$f":"ROUND(VLOOKUP(Tabelle1[[#This Row],[Frequenz]],K:L,2,0)*Tabelle1[[#This Row],[Dauer (in Minuten)]]/60,1)","v":34.700000000000003},{"$f":"ROUND(Tabelle1[[#This Row],[Dauer pro Jahr (in Stunden)]]/$L$2,1)","v":4.3}]
["Fürsorge","Gesundheit","Kindern Finger- und Fußägel schneiden","wöchentlich","Anton","ja",10,{"$f":"ROUND(VLOOKUP(Tabelle1[[#This Row],[Frequenz]],K:L,2,0)*Tabelle1[[#This Row],[Dauer (in Minuten)]]/60,1)","v":8.6999999999999993},{"$f":"ROUND(Tabelle1[[#This Row],[Dauer pro Jahr (in Stunden)]]/$L$2,1)","v":1.1000000000000001}]
["Fürsorge","Gesundheit","regelmäßige Medikamente geben","täglich","Laura","ja",5,{"$f":"ROUND(VLOOKUP(Tabelle1[[#This Row],[Frequenz]],K:L,2,0)*Tabelle1[[#This Row],[Dauer (in Minuten)]]/60,1)","v":30.4},{"$f":"ROUND(Tabelle1[[#This Row],[Dauer pro Jahr (in Stunden)]]/$L$2,1)","v":3.8}]
["Fürsorge","Gesundheit","Rezepte holen, Medikamente besorgen","monatlich","Laura","ja",20,{"$f":"ROUND(VLOOKUP(Tabelle1[[#This Row],[Frequenz]],K:L,2,0)*Tabelle1[[#This Row],[Dauer (in Minuten)]]/60,1)","v":4},{"$f":"ROUND(Tabelle1[[#This Row],[Dauer pro Jahr (in Stunden)]]/$L$2,1)","v":0.5}]
["Fürsorge","Gesundheit","Therapie-Übungen machen (Logopädie, Ergotherapie)","täglich","Anton","ja",20,{"$f":"ROUND(VLOOKUP(Tabelle1[[#This Row],[Frequenz]],K:L,2,0)*Tabelle1[[#This Row],[Dauer (in Minuten)]]/60,1)","v":121.7},{"$f":"ROUND(Tabelle1[[#This Row],[Dauer pro Jahr (in Stunden)]]/$L$2,1)","v":15.2}]
["Fürsorge","Gesundheit","Therapietermine ausmachen, planen","vierteljährlich","Beide","nein",15,{"$f":"ROUND(VLOOKUP(Tabelle1[[#This Row],[Frequenz]],K:L,2,0)*Tabelle1[[#This Row],[Dauer (in Minuten)]]/60,1)","v":1},{"$f":"ROUND(Tabelle1[[#This Row],[Dauer pro Jahr (in Stunden)]]/$L$2,1)","v":0.1}]
["Fürsorge","Gesundheit","U-Termine Kinder ausmachen","jährlich","Laura","nein",10,{"$f":"ROUND(VLOOKUP(Tabelle1[[#This Row],[Frequenz]],K:L,2,0)*Tabelle1[[#This Row],[Dauer (in Minuten)]]/60,1)","v":0.2},{"$f":"ROUND(Tabelle1[[#This Row],[Dauer pro Jahr (in Stunden)]]/$L$2,1)","v":0}]
["Fürsorge","Gesundheit","Vorsorgetermine Kinderarzt (U-Termine, Impfungen) wahrnehmen","monatlich","Anton","ja",60,{"$f":"ROUND(VLOOKUP(Tabelle1[[#This Row],[Frequenz]],K:L,2,0)*Tabelle1[[#This Row],[Dauer (in Minuten)]]/60,1)","v":12},{"$f":"ROUND(Tabelle1[[#This Row],[Dauer pro Jahr (in Stunden)]]/$L$2,1)","v":1.5}]
["Fürsorge","Haustier","Betreuung im Urlaub organisieren","vierteljährlich","Laura","nein",20,{"$f":"ROUND(VLOOKUP(Tabelle1[[#This Row],[Frequenz]],K:L,2,0)*Tabelle1[[#This Row],[Dauer (in Minuten)]]/60,1)","v":1.3},{"$f":"ROUND(Tabelle1[[#This Row],[Dauer pro Jahr (in Stunden)]]/$L$2,1)","v":0.2}]
["Fürsorge","Haustier","Futter / Zubehör kaufen","wöchentlich","Beide","nein",null,{"$f":"ROUND(VLOOKUP(Tabelle1[[#This Row],[Frequenz]],K:L,2,0)*Tabelle1[[#This Row],[Dauer (in Minuten)]]/60,1)","v":0},{"$f":"ROUND(Tabelle1[[#This Row],[Dauer pro Jahr (in Stunden)]]/$L$2,1)","v":0}]
["Fürsorge","Haustier","Gassi gehen","täglich","Beide","ja",null,{"$f":"ROUND(VLOOKUP(Tabelle1[[#This Row],[Frequenz]],K:L,2,0)*Tabelle1[[#This Row],[Dauer (in Minuten)]]/60,1)","v":0},{"$f":"ROUND(Tabelle1[[#This Row],[Dauer pro Jahr (in Stunden)]]/$L$2,1)","v":0}]
["Fürsorge","Haustier","Tierarzttermine ausmachen","vierteljährlich","Beide","nein",null,{"$f":"ROUND(VLOOKUP(Tabelle1[[#This Row],[Frequenz]],K:L,2,0)*Tabelle1[[#This Row],[Dauer (in Minuten)]]/60,1)","v":0},{"$f":"ROUND(Tabelle1[[#This Row],[Dauer pro Jahr (in Stunden)]]/$L$2,1)","v":0}]
["Fürsorge","Haustier","Tierarzttermine wahrnehmen","vierteljährlich","Beide","ja",null,{"$f":"ROUND(VLOOKUP(Tabelle1[[#This Row],[Frequenz]],K:L,2,0)*Tabelle1[[#This Row],[Dauer (in Minuten)]]/60,1)","v":0},{"$f":"ROUND(Tabelle1[[#This Row],[Dauer pro Jahr (in Stunden)]]/$L$2,1)","v":0}]
["Fürsorge","Kindergarten","Bastelmaterial sammeln und mitgeben","monatlich","Anton","ja",10,{"$f":"ROUND(VLOOKUP(Tabelle1[[#This Row],[Frequenz]],K:L,2,0)*Tabelle1[[#This Row],[Dauer (in Minuten)]]/60,1)","v":2},{"$f":"ROUND(Tabelle1[[#This Row],[Dauer pro Jahr (in Stunden)]]/$L$2,1)","v":0.3}]
["Fürsorge","Kindergarten","Begleitung Feste und Veranstaltung","vierteljährlich","Anton","ja",120,{"$f":"ROUND(VLOOKUP(Tabelle1[[#This Row],[Frequenz]],K:L,2,0)*Tabelle1[[#This Row],[Dauer (in Minuten)]]/60,1)","v":8},{"$f":"ROUND(Tabelle1[[#This Row],[Dauer pro Jahr (in Stunden)]]/$L$2,1)","v":1}]
["Fürsorge","Kindergarten","Freundebücher ausfüllen, Foto besorgen und einkleben","vierteljährlich","Anton","ja",10,{"$f":"ROUND(VLOOKUP(Tabelle1[[#This Row],[Frequenz]],K:L,2,0)*Tabelle1[[#This Row],[Dauer (in Minuten)]]/60,1)","v":0.7},{"$f":"ROUND(Tabelle1[[#This Row],[Dauer pro Jahr (in Stunden)]]/$L$2,1)","v":0.1}]
["Fürsorge","Kindergarten","Frühstücksgeld bezahlen","monatlich","Anton","nein",5,{"$f":"ROUND(VLOOKUP(Tabelle1[[#This Row],[Frequenz]],K:L,2,0)*Tabelle1[[#This Row],[Dauer (in Minuten)]]/60,1)","v":1},{"$f":"ROUND(Tabelle1[[#This Row],[Dauer pro Jahr (in Stunden)]]/$L$2,1)","v":0.1}]
["Fürsorge","Kindergarten","Kinder abholen","täglich","Laura","ja",15,{"$f":"ROUND(VLOOKUP(Tabelle1[[#This Row],[Frequenz]],K:L,2,0)*Tabelle1[[#This Row],[Dauer (in Minuten)]]/60,1)","v":91.3},{"$f":"ROUND(Tabelle1[[#This Row],[Dauer pro Jahr (in Stunden)]]/$L$2,1)","v":11.4}]
["Fürsorge","Kindergarten","Kinder hinbringen","täglich","Anton","ja",15,{"$f":"ROUND(VLOOKUP(Tabelle1[[#This Row],[Frequenz]],K:L,2,0)*Tabelle1[[#This Row],[Dauer (in Minuten)]]/60,1)","v":91.3},{"$f":"ROUND(Tabelle1[[#This Row],[Dauer pro Jahr (in Stunden)]]/$L$2,1)","v":11.4}]
["Fürsorge","Kindergarten","Wechselkleider austauschen, vervollständigen","vierteljährlich","Anton","ja",20,{"$f":"ROUND(VLOOKUP(Tabelle1[[#This Row],[Frequenz]],K:L,2,0)*Tabelle1[[#This Row],[Dauer (in Minuten)]]/60,1)","v":1.3},{"$f":"ROUND(Tabelle1[[#This Row],[Dauer pro Jahr (in Stunden)]]/$L$2,1)","v":0.2}]
["Fürsorge","Kindergarten","WhatsApp-Gruppe teilnehmen","wöchentlich","Anton","nein",5,{"$f":"ROUND(VLOOKUP(Tabelle1[[#This Row],[Frequenz]],K:L,2,0)*Tabelle1[[#This Row],[Dauer (in Minuten)]]/60,1)","v":4.3},{"$f":"ROUND(Tabelle1[[#This Row],[Dauer pro Jahr (in Stunden)]]/$L$2,1)","v":0.5}]
["Fürsorge","Kindergarten","Windeln und Feuchttücher auffüllen","monatlich","Anton","nein",10,{"$f":"ROUND(VLOOKUP(Tabelle1[[#This Row],[Frequenz]],K:L,2,0)*Tabelle1[[#This Row],[Dauer (in Minuten)]]/60,1)","v":2},{"$f":"ROUND(Tabelle1[[#This Row],[Dauer pro Jahr (in Stunden)]]/$L$2,1)","v":0.3}]
["Fürsorge","Schule","Brotdosen füllen, leeren, reinigen","täglich","Laura","ja",15,{"$f":"ROUND(VLOOKUP(Tabelle1[[#This Row],[Frequenz]],K:L,2,0)*Tabelle1[[#This Row],[Dauer (in Minuten)]]/60,1)","v":91.3},{"$f":"ROUND(Tabelle1[[#This Row],[Dauer pro Jahr (in Stunden)]]/$L$2,1)","v":11.4}]
["Fürsorge","Schule","Buffet-Beiträge organisieren","vierteljährlich","Laura","ja",20,{"$f":"ROUND(VLOOKUP(Tabelle1[[#This Row],[Frequenz]],K:L,2,0)*Tabelle1[[#This Row],[Dauer (in Minuten)]]/60,1)","v":1.3},{"$f":"ROUND(Tabelle1[[#This Row],[Dauer pro Jahr (in Stunden)]]/$L$2,1)","v":0.2}]
["Fürsorge","Schule","Elternbriefe lesen, bearbeiten, abheften","wöchentlich","Laura","ja",10,{"$f":"ROUND(VLOOKUP(Tabelle1[[#This Row],[Frequenz]],K:L,2,0)*Tabelle1[[#This Row],[Dauer (in Minuten)]]/60,1)","v":8.6999999999999993},{"$f":"ROUND(Tabelle1[[#This Row],[Dauer pro Jahr (in Stunden)]]/$L$2,1)","v":1.1000000000000001}]
["Fürsorge","Schule","Hausaufgaben kontrollieren","täglich","Laura","ja",5,{"$f":"ROUND(VLOOKUP(Tabelle1[[#This Row],[Frequenz]],K:L,2,0)*Tabelle1[[#This Row],[Dauer (in Minuten)]]/60,1)","v":30.4},{"$f":"ROUND(Tabelle1[[#This Row],[Dauer pro Jahr (in Stunden)]]/$L$2,1)","v":3.8}]
["Fürsorge","Schule","Hefte, Stifte, Schulsachen inspizieren, nachkaufen","monatlich","Laura","ja",10,{"$f":"ROUND(VLOOKUP(Tabelle1[[#This Row],[Frequenz]],K:L,2,0)*Tabelle1[[#This Row],[Dauer (in Minuten)]]/60,1)","v":2},{"$f":"ROUND(Tabelle1[[#This Row],[Dauer pro Jahr (in Stunden)]]/$L$2,1)","v":0.3}]
["Fürsorge","Schule","Kinder wecken","täglich","Laura","ja",5,{"$f":"ROUND(VLOOKUP(Tabelle1[[#This Row],[Frequenz]],K:L,2,0)*Tabelle1[[#This Row],[Dauer (in Minuten)]]/60,1)","v":30.4},{"$f":"ROUND(Tabelle1[[#This Row],[Dauer pro Jahr (in Stunden)]]/$L$2,1)","v":3.8}]
["Fürsorge","Schule","mit den Kindern für Klassenarbeiten lernen","monatlich","Laura","ja",20,{"$f":"ROUND(VLOOKUP(Tabelle1[[#This Row],[Frequenz]],K:L,2,0)*Tabelle1[[#This Row],[Dauer (in Minuten)]]/60,1)","v":4},{"$f":"ROUND(Tabelle1[[#This Row],[Dauer pro Jahr (in Stunden)]]/$L$2,1)","v":0.5}]
["Fürsorge","Schule","Schulveranstaltungen: Kind begleiten, abholen, organisieren","halbjährlich","Laura","ja",120,{"$f":"ROUND(VLOOKUP(Tabelle1[[#This Row],[Frequenz]],K:L,2,0)*Tabelle1[[#This Row],[Dauer (in Minuten)]]/60,1)","v":4},{"$f":"ROUND(Tabelle1[[#This Row],[Dauer pro Jahr (in Stunden)]]/$L$2,1)","v":0.5}]
["Fürsorge","Schule","verlorene Sachen suchen","monatlich","Laura","ja",20,{"$f":"ROUND(VLOOKUP(Tabelle1[[#This Row],[Frequenz]],K:L,2,0)*Tabelle1[[#This Row],[Dauer (in Minuten)]]/60,1)","v":4},{"$f":"ROUND(Tabelle1[[#This Row],[Dauer pro Jahr (in Stunden)]]/$L$2,1)","v":0.5}]
["Fürsorge","Schule","Wecker stellen","täglich","Laura","nein",2,{"$f":"ROUND(VLOOKUP(Tabelle1[[#This Row],[Frequenz]],K:L,2,0)*Tabelle1[[#This Row],[Dauer (in Minuten)]]/60,1)","v":12.2},{"$f":"ROUND(Tabelle1[[#This Row],[Dauer pro Jahr (in Stunden)]]/$L$2,1)","v":1.5}]
["Fürsorge","Selbstfürsorge","Paarzeit organisieren","monatlich","Laura","nein",20,{"$f":"ROUND(VLOOKUP(Tabelle1[[#This Row],[Frequenz]],K:L,2,0)*Tabelle1[[#This Row],[Dauer (in Minuten)]]/60,1)","v":4},{"$f":"ROUND(Tabelle1[[#This Row],[Dauer pro Jahr (in Stunden)]]/$L$2,1)","v":0.5}]
["Fürsorge","Selbstfürsorge","Zeit für sich (Partner 1)","wöchentlich","Laura","nein",120,{"$f":"ROUND(VLOOKUP(Tabelle1[[#This Row],[Frequenz]],K:L,2,0)*Tabelle1[[#This Row],[Dauer (in Minuten)]]/60,1)","v":104},{"$f":"ROUND(Tabelle1[[#This Row],[Dauer pro Jahr (in Stunden)]]/$L$2,1)","v":13}]
["Fürsorge","Selbstfürsorge","Zeit für sich (Partner 2)","wöchentlich","Anton","nein",120,{"$f":"ROUND(VLOOKUP(Tabelle1[[#This Row],[Frequenz]],K:L,2,0)*Tabelle1[[#This Row],[Dauer (in Minuten)]]/60,1)","v":104},{"$f":"ROUND(Tabelle1[[#This Row],[Dauer pro Jahr (in Stunden)]]/$L$2,1)","v":13}]
["Fürsorge","Soziale Kontakte","Fotos / Mails an Verwandte schicken, Kontakt halten, anrufen","vierteljährlich","Laura","nein",20,{"$f":"ROUND(VLOOKUP(Tabelle1[[#This Row],[Frequenz]],K:L,2,0)*Tabelle1[[#This Row],[Dauer (in Minuten)]]/60,1)","v":1.3},{"$f":"ROUND(Tabelle1[[#This Row],[Dauer pro Jahr (in Stunden)]]/$L$2,1)","v":0.2}]
["Fürsorge","Soziale Kontakte","Freunde einladen, kochen, backen","vierteljährlich","Laura","ja",120,{"$f":"ROUND(VLOOKUP(Tabelle1[[#This Row],[Frequenz]],K:L,2,0)*Tabelle1[[#This Row],[Dauer (in Minuten)]]/60,1)","v":8},{"$f":"ROUND(Tabelle1[[#This Row],[Dauer pro Jahr (in Stunden)]]/$L$2,1)","v":1}]
["Fürsorge","Soziale Kontakte","Freundschaften pflegen: anrufen, mailen, Kontakt halten","monatlich","Laura","nein",40,{"$f":"ROUND(VLOOKUP(Tabelle1[[#This Row],[Frequenz]],K:L,2,0)*Tabelle1[[#This Row],[Dauer (in Minuten)]]/60,1)","v":8},{"$f":"ROUND(Tabelle1[[#This Row],[Dauer pro Jahr (in Stunden)]]/$L$2,1)","v":1}]
["Fürsorge","Soziale Kontakte","Mitbring-Geschenke besorgen bei Besuchen","monatlich","Laura","nein",15,{"$f":"ROUND(VLOOKUP(Tabelle1[[#This Row],[Frequenz]],K:L,2,0)*Tabelle1[[#This Row],[Dauer (in Minuten)]]/60,1)","v":3},{"$f":"ROUND(Tabelle1[[#This Row],[Dauer pro Jahr (in Stunden)]]/$L$2,1)","v":0.4}]
["Haushalt","Elektronik / IT","Computer: warten, Virenschutz, Backup","monatlich","Anton","ja",30,{"$f":"ROUND(VLOOKUP(Tabelle1[[#This Row],[Frequenz]],K:L,2,0)*Tabelle1[[#This Row],[Dauer (in Minuten)]]/60,1)","v":6},{"$f":"ROUND(Tabelle1[[#This Row],[Dauer pro Jahr (in Stunden)]]/$L$2,1)","v":0.8}]
["Haushalt","Elektronik / IT","Fernseher: einstellen, Streamingdienste abonnieren / kündigen","vierteljährlich","Beide","ja",10,{"$f":"ROUND(VLOOKUP(Tabelle1[[#This Row],[Frequenz]],K:L,2,0)*Tabelle1[[#This Row],[Dauer (in Minuten)]]/60,1)","v":0.7},{"$f":"ROUND(Tabelle1[[#This Row],[Dauer pro Jahr (in Stunden)]]/$L$2,1)","v":0.1}]
["Haushalt","Elektronik / IT","Telefonvertrag, Telefonanlage, Batterien","jährlich","Anton","ja",10,{"$f":"ROUND(VLOOKUP(Tabelle1[[#This Row],[Frequenz]],K:L,2,0)*Tabelle1[[#This Row],[Dauer (in Minuten)]]/60,1)","v":0.2},{"$f":"ROUND(Tabelle1[[#This Row],[Dauer pro Jahr (in Stunden)]]/$L$2,1)","v":0}]
["Haushalt","Elektronik / IT","W-Lan: Router, Verbindung, Vertrag","monatlich","Anton","ja",20,{"$f":"ROUND(VLOOKUP(Tabelle1[[#This Row],[Frequenz]],K:L,2,0)*Tabelle1[[#This Row],[Dauer (in Minuten)]]/60,1)","v":4},{"$f":"ROUND(Tabelle1[[#This Row],[Dauer pro Jahr (in Stunden)]]/$L$2,1)","v":0.5}]
["Haushalt","Gartenarbeit","Rasen mähen","monatlich","Anton","ja",30,{"$f":"ROUND(VLOOKUP(Tabelle1[[#This Row],[Frequenz]],K:L,2,0)*Tabelle1[[#This Row],[Dauer (in Minuten)]]/60,1)","v":6},{"$f":"ROUND(Tabelle1[[#This Row],[Dauer pro Jahr (in Stunden)]]/$L$2,1)","v":0.8}]
["Haushalt","Gartenarbeit","Terrasse sauber halten","monatlich","Beide","ja",30,{"$f":"ROUND(VLOOKUP(Tabelle1[[#This Row],[Frequenz]],K:L,2,0)*Tabelle1[[#This Row],[Dauer (in Minuten)]]/60,1)","v":6},{"$f":"ROUND(Tabelle1[[#This Row],[Dauer pro Jahr (in Stunden)]]/$L$2,1)","v":0.8}]
["Haushalt","Gartenarbeit","Terrassenmöbel aufbauen und abbauen","jährlich","Anton","ja",45,{"$f":"ROUND(VLOOKUP(Tabelle1[[#This Row],[Frequenz]],K:L,2,0)*Tabelle1[[#This Row],[Dauer (in Minuten)]]/60,1)","v":0.8},{"$f":"ROUND(Tabelle1[[#This Row],[Dauer pro Jahr (in Stunden)]]/$L$2,1)","v":0.1}]
["Haushalt","Instandhaltung"," ","wöchentlich","Anton","nein",15,{"$f":"ROUND(VLOOKUP(Tabelle1[[#This Row],[Frequenz]],K:L,2,0)*Tabelle1[[#This Row],[Dauer (in Minuten)]]/60,1)","v":13},{"$f":"ROUND(Tabelle1[[#This Row],[Dauer pro Jahr (in Stunden)]]/$L$2,1)","v":1.6}]
["Haushalt","Instandhaltung","Abgelaufene, schimmelige Vorräte entsorgen","vierteljährlich","Laura","ja",10,{"$f":"ROUND(VLOOKUP(Tabelle1[[#This Row],[Frequenz]],K:L,2,0)*Tabelle1[[#This Row],[Dauer (in Minuten)]]/60,1)","v":0.7},{"$f":"ROUND(Tabelle1[[#This Row],[Dauer pro Jahr (in Stunden)]]/$L$2,1)","v":0.1}]
["Haushalt","Instandhaltung","Akkus aufladen, Akkus pflegen, austauschen","wöchentlich","Anton","ja",5,{"$f":"ROUND(VLOOKUP(Tabelle1[[#This Row],[Frequenz]],K:L,2,0)*Tabelle1[[#This Row],[Dauer (in Minuten)]]/60,1)","v":4.3},{"$f":"ROUND(Tabelle1[[#This Row],[Dauer pro Jahr (in Stunden)]]/$L$2,1)","v":0.5}]
["Haushalt","Instandhaltung","Blumen gießen ","täglich","Laura","ja",2,{"$f":"ROUND(VLOOKUP(Tabelle1[[#This Row],[Frequenz]],K:L,2,0)*Tabelle1[[#This Row],[Dauer (in Minuten)]]/60,1)","v":12.2},{"$f":"ROUND(Tabelle1[[#This Row],[Dauer pro Jahr (in Stunden)]]/$L$2,1)","v":1.5}]
["Haushalt","Instandhaltung","Drogerieartikel einkaufen","monatlich","Anton","ja",30,{"$f":"ROUND(VLOOKUP(Tabelle1[[#This Row],[Frequenz]],K:L,2,0)*Tabelle1[[#This Row],[Dauer (in Minuten)]]/60,1)","v":6},{"$f":"ROUND(Tabelle1[[#This Row],[Dauer pro Jahr (in Stunden)]]/$L$2,1)","v":0.8}]
["Haushalt","Instandhaltung","Elektroschrott entsorgen","jährlich","Anton","ja",30,{"$f":"ROUND(VLOOKUP(Tabelle1[[#This Row],[Frequenz]],K:L,2,0)*Tabelle1[[#This Row],[Dauer (in Minuten)]]/60,1)","v":0.5},{"$f":"ROUND(Tabelle1[[#This Row],[Dauer pro Jahr (in Stunden)]]/$L$2,1)","v":0.1}]
["Haushalt","Instandhaltung","Fahrräder in Stand halten","vierteljährlich","Anton","ja",120,{"$f":"ROUND(VLOOKUP(Tabelle1[[#This Row],[Frequenz]],K:L,2,0)*Tabelle1[[#This Row],[Dauer (in Minuten)]]/60,1)","v":8},{"$f":"ROUND(Tabelle1[[#This Row],[Dauer pro Jahr (in Stunden)]]/$L$2,1)","v":1}]
["Haushalt","Instandhaltung","Glühbirnen austauschen","akut","Anton","ja",10,{"$f":"ROUND(VLOOKUP(Tabelle1[[#This Row],[Frequenz]],K:L,2,0)*Tabelle1[[#This Row],[Dauer (in Minuten)]]/60,1)","v":0.2},{"$f":"ROUND(Tabelle1[[#This Row],[Dauer pro Jahr (in Stunden)]]/$L$2,1)","v":0}]
["Haushalt","Instandhaltung","Handwerker buchen","akut","Beide","nein",15,{"$f":"ROUND(VLOOKUP(Tabelle1[[#This Row],[Frequenz]],K:L,2,0)*Tabelle1[[#This Row],[Dauer (in Minuten)]]/60,1)","v":0.3},{"$f":"ROUND(Tabelle1[[#This Row],[Dauer pro Jahr (in Stunden)]]/$L$2,1)","v":0}]
["Haushalt","Instandhaltung","Haushaltsgeräte reparieren (lassen)","akut","Anton","nein",30,{"$f":"ROUND(VLOOKUP(Tabelle1[[#This Row],[Frequenz]],K:L,2,0)*Tabelle1[[#This Row],[Dauer (in Minuten)]]/60,1)","v":0.5},{"$f":"ROUND(Tabelle1[[#This Row],[Dauer pro Jahr (in Stunden)]]/$L$2,1)","v":0.1}]
["Haushalt","Instandhaltung","Kaffeemaschine, Waschmaschine, Spülmaschine entkalken","vierteljährlich","Anton","ja",20,{"$f":"ROUND(VLOOKUP(Tabelle1[[#This Row],[Frequenz]],K:L,2,0)*Tabelle1[[#This Row],[Dauer (in Minuten)]]/60,1)","v":1.3},{"$f":"ROUND(Tabelle1[[#This Row],[Dauer pro Jahr (in Stunden)]]/$L$2,1)","v":0.2}]
["Haushalt","Instandhaltung","Knöpfe annähen / Löcher in Kleidung stopfen / Jeans flicken","vierteljährlich","Laura","ja",40,{"$f":"ROUND(VLOOKUP(Tabelle1[[#This Row],[Frequenz]],K:L,2,0)*Tabelle1[[#This Row],[Dauer (in Minuten)]]/60,1)","v":2.7},{"$f":"ROUND(Tabelle1[[#This Row],[Dauer pro Jahr (in Stunden)]]/$L$2,1)","v":0.3}]
["Haushalt","Instandhaltung","Mülltonnen rausstellen / reinigen","wöchentlich","Anton","ja",10,{"$f":"ROUND(VLOOKUP(Tabelle1[[#This Row],[Frequenz]],K:L,2,0)*Tabelle1[[#This Row],[Dauer (in Minuten)]]/60,1)","v":8.6999999999999993},{"$f":"ROUND(Tabelle1[[#This Row],[Dauer pro Jahr (in Stunden)]]/$L$2,1)","v":1.1000000000000001}]
["Haushalt","Instandhaltung","neue Filter einsetzen (Lüftung, Staubsauger)","jährlich","Anton","ja",5,{"$f":"ROUND(VLOOKUP(Tabelle1[[#This Row],[Frequenz]],K:L,2,0)*Tabelle1[[#This Row],[Dauer (in Minuten)]]/60,1)","v":0.1},{"$f":"ROUND(Tabelle1[[#This Row],[Dauer pro Jahr (in Stunden)]]/$L$2,1)","v":0}]
["Haushalt","Instandhaltung","Schuhe putzen","monatlich","Anton","ja",30,{"$f":"ROUND(VLOOKUP(Tabelle1[[#This Row],[Frequenz]],K:L,2,0)*Tabelle1[[#This Row],[Dauer (in Minuten)]]/60,1)","v":6},{"$f":"ROUND(Tabelle1[[#This Row],[Dauer pro Jahr (in Stunden)]]/$L$2,1)","v":0.8}]
["Haushalt","Instandhaltung","Spielzeug aussortieren, warten, reinigen","vierteljährlich","Laura","ja",60,{"$f":"ROUND(VLOOKUP(Tabelle1[[#This Row],[Frequenz]],K:L,2,0)*Tabelle1[[#This Row],[Dauer (in Minuten)]]/60,1)","v":4},{"$f":"ROUND(Tabelle1[[#This Row],[Dauer pro Jahr (in Stunden)]]/$L$2,1)","v":0.5}]
["Haushalt","Instandhaltung","Staubsaugerbeutel wechseln / kaufen","vierteljährlich","Anton","ja",10,{"$f":"ROUND(VLOOKUP(Tabelle1[[#This Row],[Frequenz]],K:L,2,0)*Tabelle1[[#This Row],[Dauer (in Minuten)]]/60,1)","v":0.7},{"$f":"ROUND(Tabelle1[[#This Row],[Dauer pro Jahr (in Stunden)]]/$L$2,1)","v":0.1}]
["Haushalt","Instandhaltung","Verkauf von unbenötigten Gegenständen","halbjährlich","Beide","ja",60,{"$f":"ROUND(VLOOKUP(Tabelle1[[#This Row],[Frequenz]],K:L,2,0)*Tabelle1[[#This Row],[Dauer (in Minuten)]]/60,1)","v":2},{"$f":"ROUND(Tabelle1[[#This Row],[Dauer pro Jahr (in Stunden)]]/$L$2,1)","v":0.3}]
["Haushalt","Ordnung Küche","abends die Küche aufräumem","täglich","Laura","ja",30,{"$f":"ROUND(VLOOKUP(Tabelle1[[#This Row],[Frequenz]],K:L,2,0)*Tabelle1[[#This Row],[Dauer (in Minuten)]]/60,1)","v":182.5},{"$f":"ROUND(Tabelle1[[#This Row],[Dauer pro Jahr (in Stunden)]]/$L$2,1)","v":22.8}]
["Haushalt","Ordnung Küche","Arbeitsflächen Küche wischen","täglich","Laura","ja",10,{"$f":"ROUND(VLOOKUP(Tabelle1[[#This Row],[Frequenz]],K:L,2,0)*Tabelle1[[#This Row],[Dauer (in Minuten)]]/60,1)","v":60.8},{"$f":"ROUND(Tabelle1[[#This Row],[Dauer pro Jahr (in Stunden)]]/$L$2,1)","v":7.6}]
["Haushalt","Ordnung Küche","Boden saugen nach dem Essen","täglich","Laura","ja",20,{"$f":"ROUND(VLOOKUP(Tabelle1[[#This Row],[Frequenz]],K:L,2,0)*Tabelle1[[#This Row],[Dauer (in Minuten)]]/60,1)","v":121.7},{"$f":"ROUND(Tabelle1[[#This Row],[Dauer pro Jahr (in Stunden)]]/$L$2,1)","v":15.2}]
["Haushalt","Ordnung Küche","Esstisch abwischen","täglich","Laura","ja",5,{"$f":"ROUND(VLOOKUP(Tabelle1[[#This Row],[Frequenz]],K:L,2,0)*Tabelle1[[#This Row],[Dauer (in Minuten)]]/60,1)","v":30.4},{"$f":"ROUND(Tabelle1[[#This Row],[Dauer pro Jahr (in Stunden)]]/$L$2,1)","v":3.8}]
["Haushalt","Ordnung Küche","Herd sauber machen","täglich","Laura","ja",5,{"$f":"ROUND(VLOOKUP(Tabelle1[[#This Row],[Frequenz]],K:L,2,0)*Tabelle1[[#This Row],[Dauer (in Minuten)]]/60,1)","v":30.4},{"$f":"ROUND(Tabelle1[[#This Row],[Dauer pro Jahr (in Stunden)]]/$L$2,1)","v":3.8}]
["Haushalt","Ordnung Küche","Küchenschränke ausputzen","vierteljährlich","Laura","ja",120,{"$f":"ROUND(VLOOKUP(Tabelle1[[#This Row],[Frequenz]],K:L,2,0)*Tabelle1[[#This Row],[Dauer (in Minuten)]]/60,1)","v":8},{"$f":"ROUND(Tabelle1[[#This Row],[Dauer pro Jahr (in Stunden)]]/$L$2,1)","v":1}]
["Haushalt","Ordnung Küche","Küchenspüle putzen","täglich","Laura","ja",5,{"$f":"ROUND(VLOOKUP(Tabelle1[[#This Row],[Frequenz]],K:L,2,0)*Tabelle1[[#This Row],[Dauer (in Minuten)]]/60,1)","v":30.4},{"$f":"ROUND(Tabelle1[[#This Row],[Dauer pro Jahr (in Stunden)]]/$L$2,1)","v":3.8}]
["Haushalt","Ordnung Küche","Sieb Geschirrspüler reinigen","monatlich","Laura","ja",5,{"$f":"ROUND(VLOOKUP(Tabelle1[[#This Row],[Frequenz]],K:L,2,0)*Tabelle1[[#This Row],[Dauer (in Minuten)]]/60,1)","v":1},{"$f":"ROUND(Tabelle1[[#This Row],[Dauer pro Jahr (in Stunden)]]/$L$2,1)","v":0.1}]
["Haushalt","Ordnung Küche","Spülmaschine ausräumen","täglich","Beide","ja",10,{"$f":"ROUND(VLOOKUP(Tabelle1[[#This Row],[Frequenz]],K:L,2,0)*Tabelle1[[#This Row],[Dauer (in Minuten)]]/60,1)","v":60.8},{"$f":"ROUND(Tabelle1[[#This Row],[Dauer pro Jahr (in Stunden)]]/$L$2,1)","v":7.6}]
["Haushalt","Ordnung Wohnraum","Betten machen","täglich","Laura","ja",5,{"$f":"ROUND(VLOOKUP(Tabelle1[[#This Row],[Frequenz]],K:L,2,0)*Tabelle1[[#This Row],[Dauer (in Minuten)]]/60,1)","v":30.4},{"$f":"ROUND(Tabelle1[[#This Row],[Dauer pro Jahr (in Stunden)]]/$L$2,1)","v":3.8}]
["Haushalt","Ordnung Wohnraum","Kinderzimmer aufräumen","täglich","Laura","ja",15,{"$f":"ROUND(VLOOKUP(Tabelle1[[#This Row],[Frequenz]],K:L,2,0)*Tabelle1[[#This Row],[Dauer (in Minuten)]]/60,1)","v":91.3},{"$f":"ROUND(Tabelle1[[#This Row],[Dauer pro Jahr (in Stunden)]]/$L$2,1)","v":11.4}]
["Haushalt","Ordnung Wohnraum","Wohnzimmer aufräumen","täglich","Beide","ja",15,{"$f":"ROUND(VLOOKUP(Tabelle1[[#This Row],[Frequenz]],K:L,2,0)*Tabelle1[[#This Row],[Dauer (in Minuten)]]/60,1)","v":91.3},{"$f":"ROUND(Tabelle1[[#This Row],[Dauer pro Jahr (in Stunden)]]/$L$2,1)","v":11.4}]
["Haushalt","Putzen Bad","Badewanne putzen","wöchentlich","Laura","ja",5,{"$f":"ROUND(VLOOKUP(Tabelle1[[#This Row],[Frequenz]],K:L,2,0)*Tabelle1[[#This Row],[Dauer (in Minuten)]]/60,1)","v":4.3},{"$f":"ROUND(Tabelle1[[#This Row],[Dauer pro Jahr (in Stunden)]]/$L$2,1)","v":0.5}]
["Haushalt","Putzen Bad","Badezimmerspiegel putzen","wöchentlich","Laura","ja",5,{"$f":"ROUND(VLOOKUP(Tabelle1[[#This Row],[Frequenz]],K:L,2,0)*Tabelle1[[#This Row],[Dauer (in Minuten)]]/60,1)","v":4.3},{"$f":"ROUND(Tabelle1[[#This Row],[Dauer pro Jahr (in Stunden)]]/$L$2,1)","v":0.5}]
["Haushalt","Putzen Bad","Dusche putzen","wöchentlich","Laura","ja",5,{"$f":"ROUND(VLOOKUP(Tabelle1[[#This Row],[Frequenz]],K:L,2,0)*Tabelle1[[#This Row],[Dauer (in Minuten)]]/60,1)","v":4.3},{"$f":"ROUND(Tabelle1[[#This Row],[Dauer pro Jahr (in Stunden)]]/$L$2,1)","v":0.5}]
["Haushalt","Putzen Bad","Toilette putzen","wöchentlich","Laura","ja",5,{"$f":"ROUND(VLOOKUP(Tabelle1[[#This Row],[Frequenz]],K:L,2,0)*Tabelle1[[#This Row],[Dauer (in Minuten)]]/60,1)","v":4.3},{"$f":"ROUND(Tabelle1[[#This Row],[Dauer pro Jahr (in Stunden)]]/$L$2,1)","v":0.5}]
["Haushalt","Putzen Bad","Waschbecken putzen","wöchentlich","Laura","ja",5,{"$f":"ROUND(VLOOKUP(Tabelle1[[#This Row],[Frequenz]],K:L,2,0)*Tabelle1[[#This Row],[Dauer (in Minuten)]]/60,1)","v":4.3},{"$f":"ROUND(Tabelle1[[#This Row],[Dauer pro Jahr (in Stunden)]]/$L$2,1)","v":0.5}]
["Haushalt","Putzen Wohnraum","Böden nass wischen","wöchentlich","Anton","ja",15,{"$f":"ROUND(VLOOKUP(Tabelle1[[#This Row],[Frequenz]],K:L,2,0)*Tabelle1[[#This Row],[Dauer (in Minuten)]]/60,1)","v":13},{"$f":"ROUND(Tabelle1[[#This Row],[Dauer pro Jahr (in Stunden)]]/$L$2,1)","v":1.6}]
["Haushalt","Putzen Wohnraum","Böden staubsaugen","täglich","Laura","ja",15,{"$f":"ROUND(VLOOKUP(Tabelle1[[#This Row],[Frequenz]],K:L,2,0)*Tabelle1[[#This Row],[Dauer (in Minuten)]]/60,1)","v":91.3},{"$f":"ROUND(Tabelle1[[#This Row],[Dauer pro Jahr (in Stunden)]]/$L$2,1)","v":11.4}]
["Haushalt","Putzen Wohnraum","Fenster putzen","vierteljährlich","Anton","ja",120,{"$f":"ROUND(VLOOKUP(Tabelle1[[#This Row],[Frequenz]],K:L,2,0)*Tabelle1[[#This Row],[Dauer (in Minuten)]]/60,1)","v":8},{"$f":"ROUND(Tabelle1[[#This Row],[Dauer pro Jahr (in Stunden)]]/$L$2,1)","v":1}]
["Haushalt","Putzen Wohnraum","Spinnweben saugen","halbjährlich","Anton","ja",15,{"$f":"ROUND(VLOOKUP(Tabelle1[[#This Row],[Frequenz]],K:L,2,0)*Tabelle1[[#This Row],[Dauer (in Minuten)]]/60,1)","v":0.5},{"$f":"ROUND(Tabelle1[[#This Row],[Dauer pro Jahr (in Stunden)]]/$L$2,1)","v":0.1}]
["Haushalt","Putzen Wohnraum","Staub wischen","wöchentlich","Anton","ja",15,{"$f":"ROUND(VLOOKUP(Tabelle1[[#This Row],[Frequenz]],K:L,2,0)*Tabelle1[[#This Row],[Dauer (in Minuten)]]/60,1)","v":13},{"$f":"ROUND(Tabelle1[[#This Row],[Dauer pro Jahr (in Stunden)]]/$L$2,1)","v":1.6}]
["Haushalt","Putzen Wohnraum","Türen und Klinken putzen","monatlich","Anton","ja",5,{"$f":"ROUND(VLOOKUP(Tabelle1[[#This Row],[Frequenz]],K:L,2,0)*Tabelle1[[#This Row],[Dauer (in Minuten)]]/60,1)","v":1},{"$f":"ROUND(Tabelle1[[#This Row],[Dauer pro Jahr (in Stunden)]]/$L$2,1)","v":0.1}]
["Haushalt","Putzen Wohnraum","Wohnung lüften","täglich","Laura","ja",5,{"$f":"ROUND(VLOOKUP(Tabelle1[[#This Row],[Frequenz]],K:L,2,0)*Tabelle1[[#This Row],[Dauer (in Minuten)]]/60,1)","v":30.4},{"$f":"ROUND(Tabelle1[[#This Row],[Dauer pro Jahr (in Stunden)]]/$L$2,1)","v":3.8}]
["Haushalt","Wäsche","Badezimmerteppich waschen","monatlich","Laura","ja",5,{"$f":"ROUND(VLOOKUP(Tabelle1[[#This Row],[Frequenz]],K:L,2,0)*Tabelle1[[#This Row],[Dauer (in Minuten)]]/60,1)","v":1},{"$f":"ROUND(Tabelle1[[#This Row],[Dauer pro Jahr (in Stunden)]]/$L$2,1)","v":0.1}]
["Haushalt","Wäsche","Bettwäsche wechseln","wöchentlich","Anton","ja",15,{"$f":"ROUND(VLOOKUP(Tabelle1[[#This Row],[Frequenz]],K:L,2,0)*Tabelle1[[#This Row],[Dauer (in Minuten)]]/60,1)","v":13},{"$f":"ROUND(Tabelle1[[#This Row],[Dauer pro Jahr (in Stunden)]]/$L$2,1)","v":1.6}]
["Haushalt","Wäsche","Bügeln","wöchentlich","Anton","ja",15,{"$f":"ROUND(VLOOKUP(Tabelle1[[#This Row],[Frequenz]],K:L,2,0)*Tabelle1[[#This Row],[Dauer (in Minuten)]]/60,1)","v":13},{"$f":"ROUND(Tabelle1[[#This Row],[Dauer pro Jahr (in Stunden)]]/$L$2,1)","v":1.6}]
["Haushalt","Wäsche","Handtücher wechseln","täglich","Laura","ja",2,{"$f":"ROUND(VLOOKUP(Tabelle1[[#This Row],[Frequenz]],K:L,2,0)*Tabelle1[[#This Row],[Dauer (in Minuten)]]/60,1)","v":12.2},{"$f":"ROUND(Tabelle1[[#This Row],[Dauer pro Jahr (in Stunden)]]/$L$2,1)","v":1.5}]
["Haushalt","Wäsche","Schmutzwäsche einsammeln","täglich","Laura","ja",4,{"$f":"ROUND(VLOOKUP(Tabelle1[[#This Row],[Frequenz]],K:L,2,0)*Tabelle1[[#This Row],[Dauer (in Minuten)]]/60,1)","v":24.3},{"$f":"ROUND(Tabelle1[[#This Row],[Dauer pro Jahr (in Stunden)]]/$L$2,1)","v":3}]
["Haushalt","Wäsche","Wäsche in den Schrank räumen","täglich","Anton","ja",10,{"$f":"ROUND(VLOOKUP(Tabelle1[[#This Row],[Frequenz]],K:L,2,0)*Tabelle1[[#This Row],[Dauer (in Minuten)]]/60,1)","v":60.8},{"$f":"ROUND(Tabelle1[[#This Row],[Dauer pro Jahr (in Stunden)]]/$L$2,1)","v":7.6}]
["Haushalt","Wäsche","Wäsche waschen","täglich","Beide","ja",30,{"$f":"ROUND(VLOOKUP(Tabelle1[[#This Row],[Frequenz]],K:L,2,0)*Tabelle1[[#This Row],[Dauer (in Minuten)]]/60,1)","v":182.5},{"$f":"ROUND(Tabelle1[[#This Row],[Dauer pro Jahr (in Stunden)]]/$L$2,1)","v":22.8}]

{"sheet":"Auswertung","index":1,"n_rows":21,"n_cols":14,"rows_kept":21,"cut":false,"hidden":false,"merged":[]}
[null,"Verfügbare Stunden am Tag",{"$f":"Todo!L2","v":8},"(wird aus Todo Zelle L2 übernommen)"]
[null,"Verfügbare Personen",2,"(Anzahl eintragen)"]
[null,"Verfügbare Tage pro Jahr",365,"(Anzahl eintragen)"]
[null,"Maximale Verfügbarkeit (in Tagen)",{"$f":"C3*C2","v":730},"(wird berechnet)"]
[null,"Maximale Verfügbarkeit (in Stunden)",{"$f":"C4*C1","v":5840},"(wird berechnet)"]
[]
[null,null," ",null,null,null,null,null,null,"Dauer pro Jahr (in Tagen) ","Wer macht es?"]
[null,"Rubrik ","Dauer pro Jahr (in Stunden) ","Dauer pro Jahr (in Tagen) ",null,null,null,null,null,"Rubrik ","Anton","Beide","Laura","Gesamt"]
[null,"Haushalt",1319.3999999999996,164.7,null,null,null,null,null,"Haushalt",23.699999999999996,43,98,164.7]
[null,"Anton",188.6,23.699999999999996,null,null,null,null,null,"Fürsorge",101.6,114.09999999999998,127.20000000000002,342.9]
[null,"Beide",343.6,43,null,null,null,null,null,"Familien-Organisation",40.5,17.8,14.299999999999999,72.599999999999994]
[null,"Laura",787.19999999999959,98,null,null,null,null,null,"Gesamt",165.79999999999998,174.89999999999998,239.50000000000003,580.19999999999993]
[null,"Fürsorge",2739.9999999999995,342.9]
[null,"Anton",811.99999999999989,101.6]
[null,"Beide",913.1,114.09999999999998]
[null,"Laura",1014.8999999999997,127.20000000000002]
[null,"Familien-Organisation",578.90000000000009,72.599999999999994]
[null,"Anton",323.90000000000003,40.5]
[null,"Beide",141.90000000000003,17.8]
[null,"Laura",113.09999999999998,14.299999999999999]
[null,"Gesamt",4638.2999999999993,580.19999999999982]

{"sheet":"Details","index":2,"n_rows":300,"n_cols":2,"rows_kept":300,"cut":false,"hidden":false,"merged":[]}
["Aufgabe (wird autmatisch aus Todo übernommen)","Bemerkung (hier können Details zur Aufgabe notiert werden)"]
[{"$f":"IFERROR(Tabelle1[[#This Row],[Aufgabe]],\"\")","v":"Auto putzen"}]
[{"$f":"IFERROR(Tabelle1[[#This Row],[Aufgabe]],\"\")","v":"Kindersitze: putzen, einstellen, austauschen"}]
[{"$f":"IFERROR(Tabelle1[[#This Row],[Aufgabe]],\"\")","v":"Reifen wechseln: selber machen oder sich um Werkstatt-Termin kümmern"}]
[{"$f":"IFERROR(Tabelle1[[#This Row],[Aufgabe]],\"\")","v":"Tanken"}]
[{"$f":"IFERROR(Tabelle1[[#This Row],[Aufgabe]],\"\")","v":"TÜV"}]
[{"$f":"IFERROR(Tabelle1[[#This Row],[Aufgabe]],\"\")","v":"Versicherungen: überprüfen, bezahlen, abheften"}]
[{"$f":"IFERROR(Tabelle1[[#This Row],[Aufgabe]],\"\")","v":"Werkstatttermine Auto, akutes Problem: Termin ausmachen, Auto hinbringen, wieder abholen, Rechnung bezahlen"}]
[{"$f":"IFERROR(Tabelle1[[#This Row],[Aufgabe]],\"\")","v":"Bargeld abheben"}]
[{"$f":"IFERROR(Tabelle1[[#This Row],[Aufgabe]],\"\")","v":"Beiträge Kindergarten / Hort / Vereine organisieren, überweisen"}]
[{"$f":"IFERROR(Tabelle1[[#This Row],[Aufgabe]],\"\")","v":"Belege für Steuer sammeln"}]
[{"$f":"IFERROR(Tabelle1[[#This Row],[Aufgabe]],\"\")","v":"Kinder-Sparbücher füllen, pflegen, überprüfen"}]
[{"$f":"IFERROR(Tabelle1[[#This Row],[Aufgabe]],\"\")","v":"Kontenführung Familie"}]
[{"$f":"IFERROR(Tabelle1[[#This Row],[Aufgabe]],\"\")","v":"Kontenpflege: Finanzen checken, Altersvorsorge, Betriebsrente"}]
[{"$f":"IFERROR(Tabelle1[[#This Row],[Aufgabe]],\"\")","v":"Kontoauszüge besorgen oder organisieren"}]
[{"$f":"IFERROR(Tabelle1[[#This Row],[Aufgabe]],\"\")","v":"Miete"}]
[{"$f":"IFERROR(Tabelle1[[#This Row],[Aufgabe]],\"\")","v":"Rechnungen begleichen"}]
[{"$f":"IFERROR(Tabelle1[[#This Row],[Aufgabe]],\"\")","v":"Steuererklärung machen"}]
[{"$f":"IFERROR(Tabelle1[[#This Row],[Aufgabe]],\"\")","v":"Wohnkredit"}]
[{"$f":"IFERROR(Tabelle1[[#This Row],[Aufgabe]],\"\")","v":"altersgerechte Bücher, Cds, Hörspiele kaufen / leihen"}]
[{"$f":"IFERROR(Tabelle1[[#This Row],[Aufgabe]],\"\")","v":"Basteln: für Schule, Kindergarten, als Freizeitbeschäftigung"}]
[{"$f":"IFERROR(Tabelle1[[#This Row],[Aufgabe]],\"\")","v":"Für Bewegung und frische Luft bei den Kindern sorgen"}]
[{"$f":"IFERROR(Tabelle1[[#This Row],[Aufgabe]],\"\")","v":"Hobbys Kinder organisieren (Vereine, Unterricht)"}]
[{"$f":"IFERROR(Tabelle1[[#This Row],[Aufgabe]],\"\")","v":"Kinderbetreuung organisieren (Babysitter, kranke Kinder)"}]
[{"$f":"IFERROR(Tabelle1[[#This Row],[Aufgabe]],\"\")","v":"Playdates organisieren (und begleiten)"}]
[{"$f":"IFERROR(Tabelle1[[#This Row],[Aufgabe]],\"\")","v":"Rucksack für Familienausflüge packen / auspacken"}]
[{"$f":"IFERROR(Tabelle1[[#This Row],[Aufgabe]],\"\")","v":"Rucksack packen / auspacken für Kinderhobbys"}]
[{"$f":"IFERROR(Tabelle1[[#This Row],[Aufgabe]],\"\")","v":"tägliche Fahrdienste für Kinder"}]
[{"$f":"IFERROR(Tabelle1[[#This Row],[Aufgabe]],\"\")","v":"Wochenende: Ausflüge planen"}]
[{"$f":"IFERROR(Tabelle1[[#This Row],[Aufgabe]],\"\")","v":"Kinderkleider für den nächsten Tag rauslegen"}]
[{"$f":"IFERROR(Tabelle1[[#This Row],[Aufgabe]],\"\")","v":"Kinderkleidung nach Jahreszeiten sortieren, waschen, aufräumen"}]
[{"$f":"IFERROR(Tabelle1[[#This Row],[Aufgabe]],\"\")","v":"Kleidung an andere Kinder weitergeben / verkaufen / verschenken"}]
[{"$f":"IFERROR(Tabelle1[[#This Row],[Aufgabe]],\"\")","v":"neue Kleider kaufen (Kinder)"}]
[{"$f":"IFERROR(Tabelle1[[#This Row],[Aufgabe]],\"\")","v":"Schuhgröße messen, Kinderschuhe kaufen oder der Jahreszeit anpassen"}]
[{"$f":"IFERROR(Tabelle1[[#This Row],[Aufgabe]],\"\")","v":"alte Zeitungen aussortieren"}]
[{"$f":"IFERROR(Tabelle1[[#This Row],[Aufgabe]],\"\")","v":"Handy, Schlüssel, Geldbeutel deponieren"}]
[{"$f":"IFERROR(Tabelle1[[#This Row],[Aufgabe]],\"\")","v":"Ordner erstellen und pflegen"}]
[{"$f":"IFERROR(Tabelle1[[#This Row],[Aufgabe]],\"\")","v":"Ablage machen"}]
[{"$f":"IFERROR(Tabelle1[[#This Row],[Aufgabe]],\"\")","v":"Post sortieren und ablegen, sichten, bewerten, bezahlen, abheften "}]
[{"$f":"IFERROR(Tabelle1[[#This Row],[Aufgabe]],\"\")","v":"Versicherungen checken, kündigen, abschließen"}]
[{"$f":"IFERROR(Tabelle1[[#This Row],[Aufgabe]],\"\")","v":"Zeitungsabo bezahlen / kündigen"}]
[{"$f":"IFERROR(Tabelle1[[#This Row],[Aufgabe]],\"\")","v":"Familienfeier planen"}]
[{"$f":"IFERROR(Tabelle1[[#This Row],[Aufgabe]],\"\")","v":"Friseurtermine Kinder: ausmachen und wahrnehmen"}]
[{"$f":"IFERROR(Tabelle1[[#This Row],[Aufgabe]],\"\")","v":"Kalender führen"}]
[{"$f":"IFERROR(Tabelle1[[#This Row],[Aufgabe]],\"\")","v":"Woche planen"}]
[{"$f":"IFERROR(Tabelle1[[#This Row],[Aufgabe]],\"\")","v":"Packen"}]
[{"$f":"IFERROR(Tabelle1[[#This Row],[Aufgabe]],\"\")","v":"Packliste machen"}]
[{"$f":"IFERROR(Tabelle1[[#This Row],[Aufgabe]],\"\")","v":"Proviant für die Fahrt machen"}]
[{"$f":"IFERROR(Tabelle1[[#This Row],[Aufgabe]],\"\")","v":"Reiseapotheke auf Vollständigkeit kontrollieren, Ersatz kaufen"}]
[{"$f":"IFERROR(Tabelle1[[#This Row],[Aufgabe]],\"\")","v":"Urlaub buchen und planen"}]
[{"$f":"IFERROR(Tabelle1[[#This Row],[Aufgabe]],\"\")","v":"Blumen aufstellen, Blumen pflanzen"}]
[{"$f":"IFERROR(Tabelle1[[#This Row],[Aufgabe]],\"\")","v":"Jahreszeitlich dekorieren"}]
[{"$f":"IFERROR(Tabelle1[[#This Row],[Aufgabe]],\"\")","v":"Babybrei kochen / kaufen"}]
[{"$f":"IFERROR(Tabelle1[[#This Row],[Aufgabe]],\"\")","v":"Babykurse organisieren, anmelden, besuchen"}]
[{"$f":"IFERROR(Tabelle1[[#This Row],[Aufgabe]],\"\")","v":"Füttern"}]
[{"$f":"IFERROR(Tabelle1[[#This Row],[Aufgabe]],\"\")","v":"Vitamin D geben"}]
[{"$f":"IFERROR(Tabelle1[[#This Row],[Aufgabe]],\"\")","v":"Wickeln"}]
[{"$f":"IFERROR(Tabelle1[[#This Row],[Aufgabe]],\"\")","v":"Wickeltasche packen / auspacken"}]
[{"$f":"IFERROR(Tabelle1[[#This Row],[Aufgabe]],\"\")","v":"Faschingskostüme kaufen / nähen"}]
[{"$f":"IFERROR(Tabelle1[[#This Row],[Aufgabe]],\"\")","v":"Geschenke für ErzieherIn / Tagesmutter / FußballtrainerIn besorgen"}]
[{"$f":"IFERROR(Tabelle1[[#This Row],[Aufgabe]],\"\")","v":"Zahnfee spielen"}]
[{"$f":"IFERROR(Tabelle1[[#This Row],[Aufgabe]],\"\")","v":"Gabentisch schmücken"}]
[{"$f":"IFERROR(Tabelle1[[#This Row],[Aufgabe]],\"\")","v":"Geburtstagskuchen backen"}]
[{"$f":"IFERROR(Tabelle1[[#This Row],[Aufgabe]],\"\")","v":"Geschenke für Geburtstage überlegen, abstimmen, kaufen"}]
[{"$f":"IFERROR(Tabelle1[[#This Row],[Aufgabe]],\"\")","v":"Kindergeburtstag organisieren"}]
[{"$f":"IFERROR(Tabelle1[[#This Row],[Aufgabe]],\"\")","v":"Verwandten/ Freunden  zum Geburtstag gratulieren"}]
[{"$f":"IFERROR(Tabelle1[[#This Row],[Aufgabe]],\"\")","v":"Wünsche der Kinder merken und aufschreiben (für Geburtstage und Weihnachten)"}]
[{"$f":"IFERROR(Tabelle1[[#This Row],[Aufgabe]],\"\")","v":"Kleine Ostergeschenke und Süßes besorgen"}]
[{"$f":"IFERROR(Tabelle1[[#This Row],[Aufgabe]],\"\")","v":"Ostereier bemalen"}]
[{"$f":"IFERROR(Tabelle1[[#This Row],[Aufgabe]],\"\")","v":"Osterkörbchen füllen"}]
[{"$f":"IFERROR(Tabelle1[[#This Row],[Aufgabe]],\"\")","v":"Adventskalendergeschenke kaufen, Beutel befüllen"}]
[{"$f":"IFERROR(Tabelle1[[#This Row],[Aufgabe]],\"\")","v":"Adventskranz besorgen"}]
[{"$f":"IFERROR(Tabelle1[[#This Row],[Aufgabe]],\"\")","v":"Heilig Abend vorbereiten / organisieren"}]
[{"$f":"IFERROR(Tabelle1[[#This Row],[Aufgabe]],\"\")","v":"mit Kindern Wunschzettel schreiben"}]
[{"$f":"IFERROR(Tabelle1[[#This Row],[Aufgabe]],\"\")","v":"Plätzchen backen"}]
[{"$f":"IFERROR(Tabelle1[[#This Row],[Aufgabe]],\"\")","v":"Weihnachtsbaum kaufen und schmücken"}]
[{"$f":"IFERROR(Tabelle1[[#This Row],[Aufgabe]],\"\")","v":"Weihnachtspost schreiben"}]
[{"$f":"IFERROR(Tabelle1[[#This Row],[Aufgabe]],\"\")","v":"Erinnerungsalben Kinder pflegen / gestalten"}]
[{"$f":"IFERROR(Tabelle1[[#This Row],[Aufgabe]],\"\")","v":"Fotoalben gestalten"}]
[{"$f":"IFERROR(Tabelle1[[#This Row],[Aufgabe]],\"\")","v":"Fotos aufhängen"}]
[{"$f":"IFERROR(Tabelle1[[#This Row],[Aufgabe]],\"\")","v":"Fotos machen"}]
[{"$f":"IFERROR(Tabelle1[[#This Row],[Aufgabe]],\"\")","v":"Kinderkunstwerke sammeln, archivieren, aufhängen"}]
[{"$f":"IFERROR(Tabelle1[[#This Row],[Aufgabe]],\"\")","v":"Abendessen machen"}]
[{"$f":"IFERROR(Tabelle1[[#This Row],[Aufgabe]],\"\")","v":"Brot kaufen"}]
[{"$f":"IFERROR(Tabelle1[[#This Row],[Aufgabe]],\"\")","v":"Einkaufsliste schreiben"}]
[{"$f":"IFERROR(Tabelle1[[#This Row],[Aufgabe]],\"\")","v":"Essensplanung machen"}]
[{"$f":"IFERROR(Tabelle1[[#This Row],[Aufgabe]],\"\")","v":"Essensvorräte, Getränke einkaufen "}]
[{"$f":"IFERROR(Tabelle1[[#This Row],[Aufgabe]],\"\")","v":"Frühstück machen"}]
[{"$f":"IFERROR(Tabelle1[[#This Row],[Aufgabe]],\"\")","v":"Kochen (Wochenende)"}]
[{"$f":"IFERROR(Tabelle1[[#This Row],[Aufgabe]],\"\")","v":"Mittagessen kochen"}]
[{"$f":"IFERROR(Tabelle1[[#This Row],[Aufgabe]],\"\")","v":"Medienregeln aufstellen und auf das Einhalten achten"}]
[{"$f":"IFERROR(Tabelle1[[#This Row],[Aufgabe]],\"\")","v":"Taschengeld bestimmen und auszahlen"}]
[{"$f":"IFERROR(Tabelle1[[#This Row],[Aufgabe]],\"\")","v":"Kinder ins Bett bringen"}]
[{"$f":"IFERROR(Tabelle1[[#This Row],[Aufgabe]],\"\")","v":"Konflikte klären (zwischen Geschwistern oder zwischen Kindern und Freunden)"}]
[{"$f":"IFERROR(Tabelle1[[#This Row],[Aufgabe]],\"\")","v":"Konflikte: Aussprachen mit Kindern führen"}]
[{"$f":"IFERROR(Tabelle1[[#This Row],[Aufgabe]],\"\")","v":"sich um die eigenen Eltern kümmern"}]
[{"$f":"IFERROR(Tabelle1[[#This Row],[Aufgabe]],\"\")","v":"Augen Kinder: Sehtest, Augenarzttermin, neue Brille kaufen"}]
[{"$f":"IFERROR(Tabelle1[[#This Row],[Aufgabe]],\"\")","v":"Eincremen"}]
[{"$f":"IFERROR(Tabelle1[[#This Row],[Aufgabe]],\"\")","v":"Hausapotheke durchschauen, Ersatz kaufen, Haltbarkeit prüfen"}]
[{"$f":"IFERROR(Tabelle1[[#This Row],[Aufgabe]],\"\")","v":"Impfausweis kontrollieren"}]
[{"$f":"IFERROR(Tabelle1[[#This Row],[Aufgabe]],\"\")","v":"Kinder baden"}]
[{"$f":"IFERROR(Tabelle1[[#This Row],[Aufgabe]],\"\")","v":"Kindern Finger- und Fußägel schneiden"}]
[{"$f":"IFERROR(Tabelle1[[#This Row],[Aufgabe]],\"\")","v":"regelmäßige Medikamente geben"}]
[{"$f":"IFERROR(Tabelle1[[#This Row],[Aufgabe]],\"\")","v":"Rezepte holen, Medikamente besorgen"}]
[{"$f":"IFERROR(Tabelle1[[#This Row],[Aufgabe]],\"\")","v":"Therapie-Übungen machen (Logopädie, Ergotherapie)"}]
[{"$f":"IFERROR(Tabelle1[[#This Row],[Aufgabe]],\"\")","v":"Therapietermine ausmachen, planen"}]
[{"$f":"IFERROR(Tabelle1[[#This Row],[Aufgabe]],\"\")","v":"U-Termine Kinder ausmachen"}]
[{"$f":"IFERROR(Tabelle1[[#This Row],[Aufgabe]],\"\")","v":"Vorsorgetermine Kinderarzt (U-Termine, Impfungen) wahrnehmen"}]
[{"$f":"IFERROR(Tabelle1[[#This Row],[Aufgabe]],\"\")","v":"Betreuung im Urlaub organisieren"}]
[{"$f":"IFERROR(Tabelle1[[#This Row],[Aufgabe]],\"\")","v":"Futter / Zubehör kaufen"}]
[{"$f":"IFERROR(Tabelle1[[#This Row],[Aufgabe]],\"\")","v":"Gassi gehen"}]
[{"$f":"IFERROR(Tabelle1[[#This Row],[Aufgabe]],\"\")","v":"Tierarzttermine ausmachen"}]
[{"$f":"IFERROR(Tabelle1[[#This Row],[Aufgabe]],\"\")","v":"Tierarzttermine wahrnehmen"}]
[{"$f":"IFERROR(Tabelle1[[#This Row],[Aufgabe]],\"\")","v":"Bastelmaterial sammeln und mitgeben"}]
[{"$f":"IFERROR(Tabelle1[[#This Row],[Aufgabe]],\"\")","v":"Begleitung Feste und Veranstaltung"}]
[{"$f":"IFERROR(Tabelle1[[#This Row],[Aufgabe]],\"\")","v":"Freundebücher ausfüllen, Foto besorgen und einkleben"}]
[{"$f":"IFERROR(Tabelle1[[#This Row],[Aufgabe]],\"\")","v":"Frühstücksgeld bezahlen"}]
[{"$f":"IFERROR(Tabelle1[[#This Row],[Aufgabe]],\"\")","v":"Kinder abholen"}]
[{"$f":"IFERROR(Tabelle1[[#This Row],[Aufgabe]],\"\")","v":"Kinder hinbringen"}]
[{"$f":"IFERROR(Tabelle1[[#This Row],[Aufgabe]],\"\")","v":"Wechselkleider austauschen, vervollständigen"}]
[{"$f":"IFERROR(Tabelle1[[#This Row],[Aufgabe]],\"\")","v":"WhatsApp-Gruppe teilnehmen"}]
[{"$f":"IFERROR(Tabelle1[[#This Row],[Aufgabe]],\"\")","v":"Windeln und Feuchttücher auffüllen"}]
[{"$f":"IFERROR(Tabelle1[[#This Row],[Aufgabe]],\"\")","v":"Brotdosen füllen, leeren, reinigen"}]
[{"$f":"IFERROR(Tabelle1[[#This Row],[Aufgabe]],\"\")","v":"Buffet-Beiträge organisieren"}]
[{"$f":"IFERROR(Tabelle1[[#This Row],[Aufgabe]],\"\")","v":"Elternbriefe lesen, bearbeiten, abheften"}]
[{"$f":"IFERROR(Tabelle1[[#This Row],[Aufgabe]],\"\")","v":"Hausaufgaben kontrollieren"}]
[{"$f":"IFERROR(Tabelle1[[#This Row],[Aufgabe]],\"\")","v":"Hefte, Stifte, Schulsachen inspizieren, nachkaufen"}]
[{"$f":"IFERROR(Tabelle1[[#This Row],[Aufgabe]],\"\")","v":"Kinder wecken"}]
[{"$f":"IFERROR(Tabelle1[[#This Row],[Aufgabe]],\"\")","v":"mit den Kindern für Klassenarbeiten lernen"}]
[{"$f":"IFERROR(Tabelle1[[#This Row],[Aufgabe]],\"\")","v":"Schulveranstaltungen: Kind begleiten, abholen, organisieren"}]
[{"$f":"IFERROR(Tabelle1[[#This Row],[Aufgabe]],\"\")","v":"verlorene Sachen suchen"}]
[{"$f":"IFERROR(Tabelle1[[#This Row],[Aufgabe]],\"\")","v":"Wecker stellen"}]
[{"$f":"IFERROR(Tabelle1[[#This Row],[Aufgabe]],\"\")","v":"Paarzeit organisieren"}]
[{"$f":"IFERROR(Tabelle1[[#This Row],[Aufgabe]],\"\")","v":"Zeit für sich (Partner 1)"}]
[{"$f":"IFERROR(Tabelle1[[#This Row],[Aufgabe]],\"\")","v":"Zeit für sich (Partner 2)"}]
[{"$f":"IFERROR(Tabelle1[[#This Row],[Aufgabe]],\"\")","v":"Fotos / Mails an Verwandte schicken, Kontakt halten, anrufen"}]
[{"$f":"IFERROR(Tabelle1[[#This Row],[Aufgabe]],\"\")","v":"Freunde einladen, kochen, backen"}]
[{"$f":"IFERROR(Tabelle1[[#This Row],[Aufgabe]],\"\")","v":"Freundschaften pflegen: anrufen, mailen, Kontakt halten"}]
[{"$f":"IFERROR(Tabelle1[[#This Row],[Aufgabe]],\"\")","v":"Mitbring-Geschenke besorgen bei Besuchen"}]
[{"$f":"IFERROR(Tabelle1[[#This Row],[Aufgabe]],\"\")","v":"Computer: warten, Virenschutz, Backup"}]
[{"$f":"IFERROR(Tabelle1[[#This Row],[Aufgabe]],\"\")","v":"Fernseher: einstellen, Streamingdienste abonnieren / kündigen"}]
[{"$f":"IFERROR(Tabelle1[[#This Row],[Aufgabe]],\"\")","v":"Telefonvertrag, Telefonanlage, Batterien"}]
[{"$f":"IFERROR(Tabelle1[[#This Row],[Aufgabe]],\"\")","v":"W-Lan: Router, Verbindung, Vertrag"}]
[{"$f":"IFERROR(Tabelle1[[#This Row],[Aufgabe]],\"\")","v":"Rasen mähen"}]
[{"$f":"IFERROR(Tabelle1[[#This Row],[Aufgabe]],\"\")","v":"Terrasse sauber halten"}]
[{"$f":"IFERROR(Tabelle1[[#This Row],[Aufgabe]],\"\")","v":"Terrassenmöbel aufbauen und abbauen"}]
[{"$f":"IFERROR(Tabelle1[[#This Row],[Aufgabe]],\"\")","v":" "}]
[{"$f":"IFERROR(Tabelle1[[#This Row],[Aufgabe]],\"\")","v":"Abgelaufene, schimmelige Vorräte entsorgen"}]
[{"$f":"IFERROR(Tabelle1[[#This Row],[Aufgabe]],\"\")","v":"Akkus aufladen, Akkus pflegen, austauschen"}]
[{"$f":"IFERROR(Tabelle1[[#This Row],[Aufgabe]],\"\")","v":"Blumen gießen "}]
[{"$f":"IFERROR(Tabelle1[[#This Row],[Aufgabe]],\"\")","v":"Drogerieartikel einkaufen"}]
[{"$f":"IFERROR(Tabelle1[[#This Row],[Aufgabe]],\"\")","v":"Elektroschrott entsorgen"}]
[{"$f":"IFERROR(Tabelle1[[#This Row],[Aufgabe]],\"\")","v":"Fahrräder in Stand halten"}]
[{"$f":"IFERROR(Tabelle1[[#This Row],[Aufgabe]],\"\")","v":"Glühbirnen austauschen"}]
[{"$f":"IFERROR(Tabelle1[[#This Row],[Aufgabe]],\"\")","v":"Handwerker buchen"}]
[{"$f":"IFERROR(Tabelle1[[#This Row],[Aufgabe]],\"\")","v":"Haushaltsgeräte reparieren (lassen)"}]
[{"$f":"IFERROR(Tabelle1[[#This Row],[Aufgabe]],\"\")","v":"Kaffeemaschine, Waschmaschine, Spülmaschine entkalken"}]
[{"$f":"IFERROR(Tabelle1[[#This Row],[Aufgabe]],\"\")","v":"Knöpfe annähen / Löcher in Kleidung stopfen / Jeans flicken"}]
[{"$f":"IFERROR(Tabelle1[[#This Row],[Aufgabe]],\"\")","v":"Mülltonnen rausstellen / reinigen"}]
[{"$f":"IFERROR(Tabelle1[[#This Row],[Aufgabe]],\"\")","v":"neue Filter einsetzen (Lüftung, Staubsauger)"}]
[{"$f":"IFERROR(Tabelle1[[#This Row],[Aufgabe]],\"\")","v":"Schuhe putzen"}]
[{"$f":"IFERROR(Tabelle1[[#This Row],[Aufgabe]],\"\")","v":"Spielzeug aussortieren, warten, reinigen"}]
[{"$f":"IFERROR(Tabelle1[[#This Row],[Aufgabe]],\"\")","v":"Staubsaugerbeutel wechseln / kaufen"}]
[{"$f":"IFERROR(Tabelle1[[#This Row],[Aufgabe]],\"\")","v":"Verkauf von unbenötigten Gegenständen"}]
[{"$f":"IFERROR(Tabelle1[[#This Row],[Aufgabe]],\"\")","v":"abends die Küche aufräumem"}]
[{"$f":"IFERROR(Tabelle1[[#This Row],[Aufgabe]],\"\")","v":"Arbeitsflächen Küche wischen"}]
[{"$f":"IFERROR(Tabelle1[[#This Row],[Aufgabe]],\"\")","v":"Boden saugen nach dem Essen"}]
[{"$f":"IFERROR(Tabelle1[[#This Row],[Aufgabe]],\"\")","v":"Esstisch abwischen"}]
[{"$f":"IFERROR(Tabelle1[[#This Row],[Aufgabe]],\"\")","v":"Herd sauber machen"}]
[{"$f":"IFERROR(Tabelle1[[#This Row],[Aufgabe]],\"\")","v":"Küchenschränke ausputzen"}]
[{"$f":"IFERROR(Tabelle1[[#This Row],[Aufgabe]],\"\")","v":"Küchenspüle putzen"}]
[{"$f":"IFERROR(Tabelle1[[#This Row],[Aufgabe]],\"\")","v":"Sieb Geschirrspüler reinigen"}]
[{"$f":"IFERROR(Tabelle1[[#This Row],[Aufgabe]],\"\")","v":"Spülmaschine ausräumen"}]
[{"$f":"IFERROR(Tabelle1[[#This Row],[Aufgabe]],\"\")","v":"Betten machen"}]
[{"$f":"IFERROR(Tabelle1[[#This Row],[Aufgabe]],\"\")","v":"Kinderzimmer aufräumen"}]
[{"$f":"IFERROR(Tabelle1[[#This Row],[Aufgabe]],\"\")","v":"Wohnzimmer aufräumen"}]
[{"$f":"IFERROR(Tabelle1[[#This Row],[Aufgabe]],\"\")","v":"Badewanne putzen"}]
[{"$f":"IFERROR(Tabelle1[[#This Row],[Aufgabe]],\"\")","v":"Badezimmerspiegel putzen"}]
[{"$f":"IFERROR(Tabelle1[[#This Row],[Aufgabe]],\"\")","v":"Dusche putzen"}]
[{"$f":"IFERROR(Tabelle1[[#This Row],[Aufgabe]],\"\")","v":"Toilette putzen"}]
[{"$f":"IFERROR(Tabelle1[[#This Row],[Aufgabe]],\"\")","v":"Waschbecken putzen"}]
[{"$f":"IFERROR(Tabelle1[[#This Row],[Aufgabe]],\"\")","v":"Böden nass wischen"}]
[{"$f":"IFERROR(Tabelle1[[#This Row],[Aufgabe]],\"\")","v":"Böden staubsaugen"}]
[{"$f":"IFERROR(Tabelle1[[#This Row],[Aufgabe]],\"\")","v":"Fenster putzen"}]
[{"$f":"IFERROR(Tabelle1[[#This Row],[Aufgabe]],\"\")","v":"Spinnweben saugen"}]
[{"$f":"IFERROR(Tabelle1[[#This Row],[Aufgabe]],\"\")","v":"Staub wischen"}]
[{"$f":"IFERROR(Tabelle1[[#This Row],[Aufgabe]],\"\")","v":"Türen und Klinken putzen"}]
[{"$f":"IFERROR(Tabelle1[[#This Row],[Aufgabe]],\"\")","v":"Wohnung lüften"}]
[{"$f":"IFERROR(Tabelle1[[#This Row],[Aufgabe]],\"\")","v":"Badezimmerteppich waschen"}]
[{"$f":"IFERROR(Tabelle1[[#This Row],[Aufgabe]],\"\")","v":"Bettwäsche wechseln"}]
[{"$f":"IFERROR(Tabelle1[[#This Row],[Aufgabe]],\"\")","v":"Bügeln"}]
[{"$f":"IFERROR(Tabelle1[[#This Row],[Aufgabe]],\"\")","v":"Handtücher wechseln"}]
[{"$f":"IFERROR(Tabelle1[[#This Row],[Aufgabe]],\"\")","v":"Schmutzwäsche einsammeln"}]
[{"$f":"IFERROR(Tabelle1[[#This Row],[Aufgabe]],\"\")","v":"Wäsche in den Schrank räumen"}]
[{"$f":"IFERROR(Tabelle1[[#This Row],[Aufgabe]],\"\")","v":"Wäsche waschen"}]
[{"$f":"IFERROR(Tabelle1[[#This Row],[Aufgabe]],\"\")","v":""}]
[{"$f":"IFERROR(Tabelle1[[#This Row],[Aufgabe]],\"\")","v":""}]
[{"$f":"IFERROR(Tabelle1[[#This Row],[Aufgabe]],\"\")","v":""}]
[{"$f":"IFERROR(Tabelle1[[#This Row],[Aufgabe]],\"\")","v":""}]
[{"$f":"IFERROR(Tabelle1[[#This Row],[Aufgabe]],\"\")","v":""}]
[{"$f":"IFERROR(Tabelle1[[#This Row],[Aufgabe]],\"\")","v":""}]
[{"$f":"IFERROR(Tabelle1[[#This Row],[Aufgabe]],\"\")","v":""}]
[{"$f":"IFERROR(Tabelle1[[#This Row],[Aufgabe]],\"\")","v":""}]
[{"$f":"IFERROR(Tabelle1[[#This Row],[Aufgabe]],\"\")","v":""}]
[{"$f":"IFERROR(Tabelle1[[#This Row],[Aufgabe]],\"\")","v":""}]
[{"$f":"IFERROR(Tabelle1[[#This Row],[Aufgabe]],\"\")","v":""}]
[{"$f":"IFERROR(Tabelle1[[#This Row],[Aufgabe]],\"\")","v":""}]
[{"$f":"IFERROR(Tabelle1[[#This Row],[Aufgabe]],\"\")","v":""}]
[{"$f":"IFERROR(Tabelle1[[#This Row],[Aufgabe]],\"\")","v":""}]
[{"$f":"IFERROR(Tabelle1[[#This Row],[Aufgabe]],\"\")","v":""}]
[{"$f":"IFERROR(Tabelle1[[#This Row],[Aufgabe]],\"\")","v":""}]
[{"$f":"IFERROR(Tabelle1[[#This Row],[Aufgabe]],\"\")","v":""}]
[{"$f":"IFERROR(Tabelle1[[#This Row],[Aufgabe]],\"\")","v":""}]
[{"$f":"IFERROR(Tabelle1[[#This Row],[Aufgabe]],\"\")","v":""}]
[{"$f":"IFERROR(Tabelle1[[#This Row],[Aufgabe]],\"\")","v":""}]
[{"$f":"IFERROR(Tabelle1[[#This Row],[Aufgabe]],\"\")","v":""}]
[{"$f":"IFERROR(Tabelle1[[#This Row],[Aufgabe]],\"\")","v":""}]
[{"$f":"IFERROR(Tabelle1[[#This Row],[Aufgabe]],\"\")","v":""}]
[{"$f":"IFERROR(Tabelle1[[#This Row],[Aufgabe]],\"\")","v":""}]
[{"$f":"IFERROR(Tabelle1[[#This Row],[Aufgabe]],\"\")","v":""}]
[{"$f":"IFERROR(Tabelle1[[#This Row],[Aufgabe]],\"\")","v":""}]
[{"$f":"IFERROR(Tabelle1[[#This Row],[Aufgabe]],\"\")","v":""}]
[{"$f":"IFERROR(Tabelle1[[#This Row],[Aufgabe]],\"\")","v":""}]
[{"$f":"IFERROR(Tabelle1[[#This Row],[Aufgabe]],\"\")","v":""}]
[{"$f":"IFERROR(Tabelle1[[#This Row],[Aufgabe]],\"\")","v":""}]
[{"$f":"IFERROR(Tabelle1[[#This Row],[Aufgabe]],\"\")","v":""}]
[{"$f":"IFERROR(Tabelle1[[#This Row],[Aufgabe]],\"\")","v":""}]
[{"$f":"IFERROR(Tabelle1[[#This Row],[Aufgabe]],\"\")","v":""}]
[{"$f":"IFERROR(Tabelle1[[#This Row],[Aufgabe]],\"\")","v":""}]
[{"$f":"IFERROR(Tabelle1[[#This Row],[Aufgabe]],\"\")","v":""}]
[{"$f":"IFERROR(Tabelle1[[#This Row],[Aufgabe]],\"\")","v":""}]
[{"$f":"IFERROR(Tabelle1[[#This Row],[Aufgabe]],\"\")","v":""}]
[{"$f":"IFERROR(Tabelle1[[#This Row],[Aufgabe]],\"\")","v":""}]
[{"$f":"IFERROR(Tabelle1[[#This Row],[Aufgabe]],\"\")","v":""}]
[{"$f":"IFERROR(Tabelle1[[#This Row],[Aufgabe]],\"\")","v":""}]
[{"$f":"IFERROR(Tabelle1[[#This Row],[Aufgabe]],\"\")","v":""}]
[{"$f":"IFERROR(Tabelle1[[#This Row],[Aufgabe]],\"\")","v":""}]
[{"$f":"IFERROR(Tabelle1[[#This Row],[Aufgabe]],\"\")","v":""}]
[{"$f":"IFERROR(Tabelle1[[#This Row],[Aufgabe]],\"\")","v":""}]
[{"$f":"IFERROR(Tabelle1[[#This Row],[Aufgabe]],\"\")","v":""}]
[{"$f":"IFERROR(Tabelle1[[#This Row],[Aufgabe]],\"\")","v":""}]
[{"$f":"IFERROR(Tabelle1[[#This Row],[Aufgabe]],\"\")","v":""}]
[{"$f":"IFERROR(Tabelle1[[#This Row],[Aufgabe]],\"\")","v":""}]
[{"$f":"IFERROR(Tabelle1[[#This Row],[Aufgabe]],\"\")","v":""}]
[{"$f":"IFERROR(Tabelle1[[#This Row],[Aufgabe]],\"\")","v":""}]
[{"$f":"IFERROR(Tabelle1[[#This Row],[Aufgabe]],\"\")","v":""}]
[{"$f":"IFERROR(Tabelle1[[#This Row],[Aufgabe]],\"\")","v":""}]
[{"$f":"IFERROR(Tabelle1[[#This Row],[Aufgabe]],\"\")","v":""}]
[{"$f":"IFERROR(Tabelle1[[#This Row],[Aufgabe]],\"\")","v":""}]
[{"$f":"IFERROR(Tabelle1[[#This Row],[Aufgabe]],\"\")","v":""}]
[{"$f":"IFERROR(Tabelle1[[#This Row],[Aufgabe]],\"\")","v":""}]
[{"$f":"IFERROR(Tabelle1[[#This Row],[Aufgabe]],\"\")","v":""}]
[{"$f":"IFERROR(Tabelle1[[#This Row],[Aufgabe]],\"\")","v":""}]
[{"$f":"IFERROR(Tabelle1[[#This Row],[Aufgabe]],\"\")","v":""}]
[{"$f":"IFERROR(Tabelle1[[#This Row],[Aufgabe]],\"\")","v":""}]
[{"$f":"IFERROR(Tabelle1[[#This Row],[Aufgabe]],\"\")","v":""}]
[{"$f":"IFERROR(Tabelle1[[#This Row],[Aufgabe]],\"\")","v":""}]
[{"$f":"IFERROR(Tabelle1[[#This Row],[Aufgabe]],\"\")","v":""}]
[{"$f":"IFERROR(Tabelle1[[#This Row],[Aufgabe]],\"\")","v":""}]
[{"$f":"IFERROR(Tabelle1[[#This Row],[Aufgabe]],\"\")","v":""}]
[{"$f":"IFERROR(Tabelle1[[#This Row],[Aufgabe]],\"\")","v":""}]
[{"$f":"IFERROR(Tabelle1[[#This Row],[Aufgabe]],\"\")","v":""}]
[{"$f":"IFERROR(Tabelle1[[#This Row],[Aufgabe]],\"\")","v":""}]
[{"$f":"IFERROR(Tabelle1[[#This Row],[Aufgabe]],\"\")","v":""}]
[{"$f":"IFERROR(Tabelle1[[#This Row],[Aufgabe]],\"\")","v":""}]
[{"$f":"IFERROR(Tabelle1[[#This Row],[Aufgabe]],\"\")","v":""}]
[{"$f":"IFERROR(Tabelle1[[#This Row],[Aufgabe]],\"\")","v":""}]
[{"$f":"IFERROR(Tabelle1[[#This Row],[Aufgabe]],\"\")","v":""}]
[{"$f":"IFERROR(Tabelle1[[#This Row],[Aufgabe]],\"\")","v":""}]
[{"$f":"IFERROR(Tabelle1[[#This Row],[Aufgabe]],\"\")","v":""}]
[{"$f":"IFERROR(Tabelle1[[#This Row],[Aufgabe]],\"\")","v":""}]
[{"$f":"IFERROR(Tabelle1[[#This Row],[Aufgabe]],\"\")","v":""}]
[{"$f":"IFERROR(Tabelle1[[#This Row],[Aufgabe]],\"\")","v":""}]
[{"$f":"IFERROR(Tabelle1[[#This Row],[Aufgabe]],\"\")","v":""}]
[{"$f":"IFERROR(Tabelle1[[#This Row],[Aufgabe]],\"\")","v":""}]
[{"$f":"IFERROR(Tabelle1[[#This Row],[Aufgabe]],\"\")","v":""}]
[{"$f":"IFERROR(Tabelle1[[#This Row],[Aufgabe]],\"\")","v":""}]
[{"$f":"IFERROR(Tabelle1[[#This Row],[Aufgabe]],\"\")","v":""}]
[{"$f":"IFERROR(Tabelle1[[#This Row],[Aufgabe]],\"\")","v":""}]
[{"$f":"IFERROR(Tabelle1[[#This Row],[Aufgabe]],\"\")","v":""}]
[{"$f":"IFERROR(Tabelle1[[#This Row],[Aufgabe]],\"\")","v":""}]
[{"$f":"IFERROR(Tabelle1[[#This Row],[Aufgabe]],\"\")","v":""}]
[{"$f":"IFERROR(Tabelle1[[#This Row],[Aufgabe]],\"\")","v":""}]
[{"$f":"IFERROR(Tabelle1[[#This Row],[Aufgabe]],\"\")","v":""}]
[{"$f":"IFERROR(Tabelle1[[#This Row],[Aufgabe]],\"\")","v":""}]
[{"$f":"IFERROR(Tabelle1[[#This Row],[Aufgabe]],\"\")","v":""}]
[{"$f":"IFERROR(Tabelle1[[#This Row],[Aufgabe]],\"\")","v":""}]
[{"$f":"IFERROR(Tabelle1[[#This Row],[Aufgabe]],\"\")","v":""}]
[{"$f":"IFERROR(Tabelle1[[#This Row],[Aufgabe]],\"\")","v":""}]
[{"$f":"IFERROR(Tabelle1[[#This Row],[Aufgabe]],\"\")","v":""}]
[{"$f":"IFERROR(Tabelle1[[#This Row],[Aufgabe]],\"\")","v":""}]
[{"$f":"IFERROR(Tabelle1[[#This Row],[Aufgabe]],\"\")","v":""}]
[{"$f":"IFERROR(Tabelle1[[#This Row],[Aufgabe]],\"\")","v":""}]
[{"$f":"IFERROR(Tabelle1[[#This Row],[Aufgabe]],\"\")","v":""}]
[{"$f":"IFERROR(Tabelle1[[#This Row],[Aufgabe]],\"\")","v":""}]
[{"$f":"IFERROR(Tabelle1[[#This Row],[Aufgabe]],\"\")","v":""}]
[{"$f":"IFERROR(Tabelle1[[#This Row],[Aufgabe]],\"\")","v":""}]
[{"$f":"IFERROR(Tabelle1[[#This Row],[Aufgabe]],\"\")","v":""}]
[{"$f":"IFERROR(Tabelle1[[#This Row],[Aufgabe]],\"\")","v":""}]
[{"$f":"IFERROR(Tabelle1[[#This Row],[Aufgabe]],\"\")","v":""}]